Workbook

Sheet PFP
A1: PROPOSTA FINANCEIRA DO PROJETO | J1: CODIGO:
J2: PFP
A3: NOME DA CONSULTORA:
A5: PROJETO: | F5: CONTRATANTE: | J5: BASE:
A6: CONTRATAÇÃO DOS SERVIÇOS DE APOIO À FISCALIZAÇÃO PARA EXECUÇÃO DAS OBRAS DE ENGENHARIA, VISANDO A IMPLANTAÇÃO DE PONTE EM CONCRETO ARMADO SOBRE O RIO MELCHIOR, NA REGIÃO ADMINISTRATIVA DA CEILÂNDIA, DISTRITO FEDERAL. | F6: CODEVASF (SEDE) | J6: SICRO JAN/2025; SINAPI MAIO/2025; EMBASA JAN/2025; ORSE ABR/2025; SUDECAP JAN/2025. DATA-BASE ORÇAMENTO: JUN/2025
A7: Base | B7: Cod2 | C7: Código | D7: Categoria / Insumo | E7: Uni | F7: Qde | G7: CUD | H7: PU | I7: FatorK | J7: CT | K7: PT | L7: Encargos COMP E ADICIONAIS | M7: SOCIAIS | N7: TOTAIS | P7: Encargos Comp e Adicionais
A8: SICRO | B8: MO1 | C8: P8065 | D8: Engenheiro Júnior | E8: mês | F8: 8 | G8: =VLOOKUP(C8,'MDO - DNIT'!$A:$Z,4,0) -> 12903 | H8: =G8*I8 -> 27666.6126 | I8: ='PFP2.1_FatorKa'!$E$36 -> 2.1442 | J8: =G8*F8 -> 103224 | K8: =ROUND(J8*I8,2) -> 221332.9 | P8: =VLOOKUP(C8,'MDO - DNIT'!$A:$Z,26,0) -> 1087.22 | S8: 40
A9: SICRO | B9: MO1 | C9: P8147 | D9: Técnico - Profissional Especial | E9: mês | F9: 8 | G9: =VLOOKUP(C9,'MDO - DNIT'!$A:$Z,4,0) -> 3242.89 | H9: 6953.404738 | I9: ='PFP2.1_FatorKa'!$E$36 -> 2.1442 | J9: =G9*F9 -> 25943.12 | K9: =ROUND(J9*I9,2) -> 55627.24 | L9: =N9-M9 -> 1070.18 | M9: 2450.48 | N9: 3520.66 | P9: =VLOOKUP(C9,'MDO - DNIT'!$A:$Z,26,0) -> 1144.72 | S9: 40
A10: SICRO | B10: MO1 | C10: P8098 | D10: Técnico Auxiliar (Laboratorista) | E10: mês | F10: 8 | G10: =VLOOKUP(C10,'MDO - DNIT'!$A:$Z,4,0) -> 2413.91 | H10: 5175.905822 | I10: ='PFP2.1_FatorKa'!$E$36 -> 2.1442 | J10: 19311.28 | K10: 41407.25 | P10: =VLOOKUP(C10,'MDO - DNIT'!$A:$Z,26,0) -> 1194.73 | S10: 40
A11: CODE | B11: LO | C11: PROP | D11: Relatório Semanal de Obras | E11: und | F11: 32 | G11: ='PFP1.3_Ger'!H13 -> 506.5143182 | H11: 612.9329764 | I11: =PFP3_FatorKd!$E$17 -> 1.2101 | J11: 16208.45818 | K11: =H11*F11 -> 19613.85525
A12: CODE | B12: LO | C12: PROP | D12: Consultoria de Interpretação de Projeto para Execução | E12: und | F12: 4 | G12: ='PFP1.3_Ger'!H20 -> 5489.9025 | H12: 6643.331015 | I12: =PFP3_FatorKd!$E$17 -> 1.2101 | J12: 21959.61 | K12: =H12*F12 -> 26573.32406
A13: CODE | B13: LO | C13: PROP | D13: Levantamento Topográfico | E13: und | F13: 1 | G13: ='PFP1.3_Ger'!H28 -> 9939.23 | H13: 12027.46222 | I13: =PFP3_FatorKd!$E$17 -> 1.2101 | J13: 9939.23 | K13: 12027.46222
A14: CODE | B14: LO | C14: PROP | D14: Veículo leve - 71 a 115 CV | E14: mês | F14: 16 | G14: ='CPU-VEICULO_Leve'!D49 -> 1763.031784 | H14: 2133.444761 | I14: =PFP3_FatorKd!$E$17 -> 1.2101 | J14: 28208.50854 | K14: 34135.12 | S14: 86
A15: CODE | B15: LO | C15: PROP | D15: Infraestrutura e Equipamentos de Escritório | E15: und | F15: 1 | G15: ='PFP1.2_Equi_div'!G11 -> 27870.32 | H15: =G15*I15 -> 33725.87423 | I15: =PFP3_FatorKd!$E$17 -> 1.2101 | J15: =G15*F15 -> 27870.32 | K15: 33725.87 | S15: 1
A16: SICRO | B16: EC | C16: SICRO | D16: Encargos Complementares Adicionais | E16: mês | F16: =SUM(F8:F10) -> 24 | G16: =AVERAGE(P8:P10) -> 1142.223333 | H16: 1382.204456 | I16: =PFP3_FatorKd!$E$17 -> 1.2101 | J16: 27413.36 | K16: 33172.91 | S16: 314
A17: TOTAL DOS CUSTOS DIRETOS | H17: =SUM(J8:J16) -> 280077.8867
A18: TOTAL DOS ENCARGOS E DESPESAS DIVERSAS | H18: =H19-H17 -> 197538.0448
A19: TOTAL DA PROPOSTA A PREÇO GLOBAL | H19: =SUM(K8:K15,K16) -> 477615.9315
A20: TOTAL DA PROPOSTA | H20: =H19 -> 477615.9315 | P20: =H20/5900000 -> 0.0809518528
A21: OBSERVAÇÃO:
A22: *Encargos Complementares e adicionais já incluem auxílio transporte
A23: Alocar os Insumos MO, com respectivo FatorK, dentro da categoria de vínculo contratual (celetista, autonomo, societario)
A24: Uni - unidade de medição do insumo;
A25: Qde - Quantidade do Insumo (não pode ocorrer alteração pela Licitante)
A26: CUD - Custo Unitário Direto do Insumo (sem encargos, taxas e impostos, valor não pode ser maior que o Orçado pela Codevasf)
A27: CT - Custo Total (sem encargos, taxas e impostos) - CT = Qde x CUD
A28: FatorK - Taxa de Ressarcimento de Despesas e Encargos (detalhar composição nas Planilhas "PFP2.1", "PFP2.2", "PFP3")
A29: PU - Preço Unitário do Insumo (incluído encargos, taxas e impostos) - PU = CUD x FatorK
A30: PT - Preço Total do Insumo (incluído encargos, taxas e impostos) - PT = Qde x PU
A31: P - Profissionais nível superior nas áreas de Engenharia, Química, Arquitetura, Agronomia e Veterinária, conforme disposições da Lei 4.950-A/66
A32: S - Profissionais de nível superior nas demais áreas de atuação, incluindo Arqueólogo, Biólogo, Geógrafo e Sociólogo
A33: T - Profissionais de nível médio técnico nas diversas áreas de atuação
A34: A - Profissionais de nível médio de apoio técnico-administrativo
A36: Observações:
A37: 1- Sistemas oficiais de referência de preços utilizados
A38: Tabela Consultiva do DNIT-Out/2022.
A39: SINAPI/GO - 11/2022

Sheet PFP1.1Serv Graficos (hidden)
A3: Serviços Gráficos
A5: Serviço | C5: Referencia | D5: Código | E5: Valor | H5: 1 Vol Impressão Rel Final
A6: Impressão colorida | C6: SETOP/COMPOSIÇÃO | D6: CO-2019 | E6: 2 | G6: Preto | H6: =C17*E7 -> 0
A7: Impressão preta | C7: SETOP/COMPOSIÇÃO | D7: CO-2017 | E7: 0.33 | G7: Colorida | H7: =D17*E6 -> 0
A8: Encadernação até 350 fls. | C8: EMBASA/COMPOSIÇÃO | D8: 30.02.30 / 30.02.27 | E8: =20+7.2 -> 27.2 | F8: Foi considerado a soma de 2 composições, com encadernação de 250 e 100 folhas | G8: Encader | H8: =E8 -> 27.2
A9: Encadernação até 50 fls. | C9: EMBASA/COMPOSIÇÃO | D9: 30.02.26 | E9: 6 | G9: Total | H9: =SUM(H6:H8) -> 27.2
A10: Encadernação até 100 fls. | C10: EMBASA/COMPOSIÇÃO | D10: 30.02.27 | E10: 7.2
A11: Impressão em A3 | C11: SETOP/COMPOSIÇÃO | D11: CO-2020 / CO-2018 | E11: =(4.8+0.93)/2 -> 2.865 | F11: Foi considerado o valor médio entre a impressão colorida e preta/branco | H11: 1 Rel A3
A12: Impressão em A1 | C12: - | D12: - | E12: =2*E11 -> 5.73 | F12: Foi considerado o dobro do valor da impressão A3 | G12: Impresão A3 | H12: =B18*E11 -> 0
A13: Impressão em A0 | C13: - | D13: - | E13: =2*E12 -> 11.46 | F13: Foi considerado o dobro do valor da impressão A1 | G13: Encader | H13: =E8 -> 27.2
G14: Total | H14: =SUM(H12:H13) -> 27.2
A15: RELATÓRIO FINAL
A16: Qtd Rel Final (Volumes) | B16: Qtd Pág por Volume | C16: Qtd Impressão Preta | D16: Qtd Impressão Color | E16: Custo Unitário Parcial
A17: 0 | B17: 0 | C17: =B17*0.9 -> 0 | D17: =B17*0.1 -> 0 | E17: =H9*A17 -> 0 | F17: Estimamos 90% do total de páginas de impressões pretas e 10% coloridas.
A18: Peça Gráfica - Impressão em A3 | B18: 0 | E18: =ROUND(((B18*E11)+E8),2) -> 27.2
A19: Peça Gráfica - Impressão em A1 | B19: 0 | E19: =ROUND(((B19*E12)+E8),2) -> 27.2
A20: Custo Unitário Rel Final | E20: =SUM(E17:E19) -> 54.4
A23: MINUTA DO RELATÓRIO FINAL
A24: Qtd Rel Final (Volumes) | B24: Qtd Pág por Volume | C24: Qtd Impressão Preta | D24: Qtd Impressão Color | E24: Custo Unitário Parcial
A25: 3 | B25: 350 | C25: =B25*0.9 -> 315 | D25: =B25*0.1 -> 35 | E25: =H9*A25 -> 81.6
A26: Peça Gráfica - Impressão em A4 | B26: 350 | E26: =(E7*B26)+H8 -> 142.7
A28: Custo Unitário Rel Final | E28: =SUM(E25:E26) -> 224.3
A31: Descrição | B31: Qtd Pág por Volume | C31: Qtd Impressão Preta | D31: Qtd Impressão Color | E31: Custo Unitário Total
A32: Relatório Mensal | B32: 50 | C32: =B32*0.9 -> 45 | D32: =B32*0.1 -> 5 | E32: =H36 -> 30.85 | F32: Estimamos a quantidade de página por volume. | H32: 1 Rel Mensal | I32: 1 Rel Parcial
A33: Relatório Parcial | B33: 100 | C33: =B33*0.9 -> 90 | D33: =B33*0.1 -> 10 | E33: =I36 -> 56.9 | F33: Estimamos a quantidade de página por volume. | H33: =C32*E7 -> 14.85 | I33: =C33*E7 -> 29.7
A34: Minuta do Relatório Final | E34: =E28 -> 224.3 | H34: =D32*E6 -> 10 | I34: =D33*E6 -> 20
A35: Relatório Final | E35: =E20 -> 54.4 | H35: =E9 -> 6 | I35: =E10 -> 7.2
G36: Total | H36: =SUM(H33:H35) -> 30.85 | I36: =SUM(I33:I35) -> 56.9
A38: OBS: A quantidade de páginas por volume foi estimada
A39: 1 - Relatório Mensal: Será considerado 01 Volume com uma quantidade estimada de 50 páginas.
A40: 2 - Relatório Parcial: Será considerado 01 Volumes com uma quantidade estimada de 100 páginas.
A41: 3 - Minuta do Relatório Final: Será considerado 03 Volumes com uma quantidade estimada de 350 páginas, cada, + 01 Volume de desenho em Folha A4, com estimativa de 350 páginas.
A42: 4 - Relatório Final: Será considerado 03 Volumes com uma quantidade estimada de 350 páginas, cada, + 01 Volume de desenho em Folha A3, com estimativa de 350 páginas.

Sheet PFP1.2_Equi_div
A1: RECURSOS GERAIS | G1: CODIGO:
G2: PFP1.2
A3: NOME DA EMPRESA:
A5: PROJETO: | E5: CONTRATANTE: | G5: =PFP!J5 -> BASE:
A6: =PFP!A6 -> CONTRATAÇÃO DOS SERVIÇOS DE APOIO À FISCALIZAÇÃO PARA EXECUÇÃO DAS OBRAS DE ENGENHARIA, VISANDO A IMPLANTAÇÃO DE PONTE EM CONCRETO ARMADO SOBRE O RIO MELCHIOR, NA REGIÃO ADMINISTRATIVA DA CEILÂNDIA, DISTRITO FEDERAL. | E6: CODEVASF (SEDE) | G6: =PFP!J6 -> SICRO JAN/2025; SINAPI MAIO/2025; EMBASA JAN/2025; ORSE ABR/2025; SUDECAP JAN/2025. DATA-BASE ORÇAMENTO: JUN/2025
A7: Cod. | B7: Base | C7: Insumos | D7: Uni | E7: Qde | F7: Preço Unitário (PU) | G7: Preço Total (PT)
A8: PROP | B8: CODE | C8: Aluguel de notebook | D8: mês | E8: =8+8 -> 16 | F8: ='AUX - NOTEBOOK'!H10 -> 92.05 | G8: =E8*F8 -> 1472.8
A9: PROP | B9: CODE | C9: Aluguel de impressora | D9: mês | E9: 8 | F9: ='AUX - IMPRESSORA'!H10 -> 54.13 | G9: =E9*F9 -> 433.04
A10: PROP | B10: CODE | C10: Escritório | D10: mês | E10: 8 | F10: ='CPU ESCRIT. CONTAINER'!C14 -> 3245.56 | G10: 25964.48
A11: TOTAL | G11: =SUM(G8:G10) -> 27870.32

Sheet PFP1.3_Ger
A1: RECURSOS GERAIS | I1: CODIGO:
I2: PFP1.3
A3: NOME DA EMPRESA:
A5: PROJETO: | G5: CONTRATANTE: | I5: =[334]PFP!J5 -> BASE:
A6: =PFP!A6 -> CONTRATAÇÃO DOS SERVIÇOS DE APOIO À FISCALIZAÇÃO PARA EXECUÇÃO DAS OBRAS DE ENGENHARIA, VISANDO A IMPLANTAÇÃO DE PONTE EM CONCRETO ARMADO SOBRE O RIO MELCHIOR, NA REGIÃO ADMINISTRATIVA DA CEILÂNDIA, DISTRITO FEDERAL. | G6: CODEVASF (SEDE) | I6: =PFP!J6 -> SICRO JAN/2025; SINAPI MAIO/2025; EMBASA JAN/2025; ORSE ABR/2025; SUDECAP JAN/2025. DATA-BASE ORÇAMENTO: JUN/2025
A8: CODE 1 | D8: DESCRIÇÃO | E8: UNIDADE | F8: QUANTIDADE | G8: CUSTO UNITÁRIO | H8: CUSTO TOTAL
A9: ORIGEM | B9: CÓDIGO 1 | C9: CÓDIGO 2 | D9: RELATÓRIO SEMANAL DE OBRAS | E9: [un] | F9: 1 | H9: -
A10: SINAPI | B10: MO1 | C10: 2706 | D10: Engenheiro Civil - Elaboração de Relatório Semanal de Obras | E10: [h] | F10: 4 | G10: 123.22 | H10: =F10*G10 -> 492.88 | I10: mês
A11: DNIT | B11: SU | C11: B8953 | D11: Escritório - Mobiliário | E11: dia | F11: 0.5 | G11: ='C.G - DNIT'!G18/22 -> 21.07545455 | H11: =F11*G11 -> 10.53772727 | I11: dia
A12: DNIT | B12: SU | C12: B8959 | D12: Escritório - Custos Diversos | E12: dia | F12: 0.5 | G12: ='C.G - DNIT'!G25/22 -> 6.193181818 | H12: =F12*G12 -> 3.096590909 | I12: dia
H13: =SUM(H10:H12) -> 506.5143182
A17: CODE 2 | D17: DESCRIÇÃO | E17: UNIDADE | F17: QUANTIDADE | G17: CUSTO UNITÁRIO | H17: CUSTO TOTAL
A18: ORIGEM | B18: CÓDIGO 1 | C18: CÓDIGO 2 | D18: RELATÓRIO DE AVALIAÇÃO DO PROJETO | E18: [un] | F18: 1 | H18: -
A19: SINAPI | B19: MO1 | C19: 40811 | D19: Engenheiro Civil - Avaliação do Projeto | E19: [mês] | F19: 0.25 | G19: 21959.61 | H19: =G19*F19 -> 5489.9025 | I19: mês
H20: =SUM(H19:H19) -> 5489.9025
A24: CODE 3 | D24: DESCRIÇÃO | E24: UNIDADE | F24: QUANTIDADE | G24: CUSTO UNITÁRIO | H24: CUSTO TOTAL
A25: ORIGEM | B25: CÓDIGO 1 | C25: CÓDIGO 2 | D25: LEVANTAMENTO TOPOGRÁFICO | E25: [un] | F25: 1 | H25: -
A26: DNIT | B26: MO2 | C26: P8163 | D26: Topógrafo | E26: [mês] | F26: 1 | G26: =VLOOKUP(C26,'MDO - DNIT'!$A:$Z,25,0) -> 5732.91 | H26: =F26*G26 -> 5732.91 | I26: mês
A27: DNIT | B27: MO2 | C27: P8028 | D27: Auxiliar | E27: [mês] | F27: 1 | G27: =VLOOKUP(C27,'MDO - DNIT'!$A:$Z,25,0) -> 4206.32 | H27: =F27*G27 -> 4206.32 | I27: mês
H28: =SUM(H26:H27) -> 9939.23

Sheet PFP1.4_Ensaios_Solo_Concreto (hidden)
A1: ENSAIOS DE SOLO E CONCRETO | I1: CODIGO:
I2: PFP-1.4
A3: NOME DA EMPRESA:
K4: MEMÓRIA DE CALCULO DO BDI DE FORNECIMENTO
A5: PROJETO: | F5: CONTRATANTE: | I5: =[335]PFP!K5 -> BASE: | K5: ITEM | L5: DISCRIMINAÇÃO | M5: PERC. (%)
A6: =PFP!A6 -> CONTRATAÇÃO DOS SERVIÇOS DE APOIO À FISCALIZAÇÃO PARA EXECUÇÃO DAS OBRAS DE ENGENHARIA, VISANDO A IMPLANTAÇÃO DE PONTE EM CONCRETO ARMADO SOBRE O RIO MELCHIOR, NA REGIÃO ADMINISTRATIVA DA CEILÂNDIA, DISTRITO FEDERAL. | F6: =PFP!F6 -> CODEVASF (SEDE) | I6: =PFP!J6 -> SICRO JAN/2025; SINAPI MAIO/2025; EMBASA JAN/2025; ORSE ABR/2025; SUDECAP JAN/2025. DATA-BASE ORÇAMENTO: JUN/2025
A7: Base | B7: Cod. | C7: Código | D7: Insumos | E7: Uni | F7: Qde | G7: Custo Unitário (CU) | H7: Custo Total | I7: Preço Total (PT)
A8: EMBASA | B8: CODE | C8: 32.01.01 | D8: Sondagem A Trado Manual | E8: m | F8: 0 | G8: 65 | H8: =ROUND(F8*G8,2) -> 0 | I8: =H8*(1+$M$25) -> 0 | K8: 1.00 | L8: Despesas Indiretas
A9: EMBASA | B9: CODE | C9: 34.01.22 | D9: Ensaio de Umidade Natral (Estufa) | E9: und | F9: 0 | G9: 100 | H9: =ROUND(F9*G9,2) -> 0 | I9: =H9*(1+$M$25) -> 0 | K9: A1 | L9: Seguro e Garantia | M9: 0.008
A10: EMBASA | B10: CODE | C10: 34.01.23 | D10: Ensaio de Umidade Natural "Speed" | E10: und | F10: 0 | G10: 85 | H10: 0 | I10: 0 | K10: A2 | L10: Riscos e Imprevistos | M10: 0.0115
A11: EMBASA | B11: CODE | C11: 34.01.07 | D11: Deterimnação de Limite de Liquidez | E11: und | F11: 0 | G11: 190 | H11: 0 | I11: 0 | K11: A3 | L11: Despesas Financeiras | M11: 0.0105
A12: EMBASA | B12: CODE | C12: 34.01.10 | D12: Determinação de Limite de Plasticidade | E12: und | F12: 0 | G12: 190 | H12: 0 | I12: 0 | K12: A4 | L12: Administração Central | M12: 0.022
A13: COMPESA | B13: CODE | C13: 01.07.07U | D13: Ensaio de Granulometria por Peneiramento e Sedimentação | E13: und | F13: 0 | G13: 138.12 | H13: 0 | I13: 0 | K13: Total do Grupo A = | M13: =SUM(M9:M12) -> 0.052
A14: EMBASA | B14: CODE | C14: 34.01.25 | D14: Ensaio de Compactação - Proctor Normal | E14: und | F14: 0 | G14: 300 | H14: 0 | I14: 0 | K14: 2.00 | L14: Benefício
A15: EMBASA | B15: CODE | C15: 34.01.16 | D15: Massa Específica Real dos Grãos | E15: und | F15: 0 | G15: 65.78 | H15: 0 | I15: 0 | K15: B1 | L15: LUCRO | M15: 0.05
A16: EMBASA | B16: CODE | C16: 34.05.19 | D16: Deteriminação da Massa Específica Aparente "In Situ", com Emprego do Cilindro de Cravação | E16: und | F16: 0 | G16: 157.86 | H16: 0 | I16: 0 | K16: Total do Grupo B = | M16: =M15 -> 0.05
A17: SUDECAP | B17: CODE | C17: 98.04.09 | D17: Concreto - Extração e Rompimento de Corpo de Prova Cilindrico | E17: und | F17: 0 | G17: 600 | H17: 0 | I17: 0 | K17: 3.00 | L17: Impostos
A18: SETOP | B18: CODE | C18: ED-49546 | D18: Concreto - Rompimento de Corpo de Prova Moldado in Loco no Recebimento | E18: und | F18: 0 | G18: 100.21 | H18: 0 | I18: 0 | K18: C1 | L18: PIS / PASEP | M18: 0.0065
A19: TOTAL SERVIÇOS ENSAIOS | I19: =SUM(I8:I18) -> 0 | K19: C2 | L19: COFINS | M19: 0.03
A20: OBSERVAÇÃO: | K20: C3 | L20: ISS | M20: 0
A21: Uni - unidade de medição do insumo; | K21: Total do Grupo C = | M21: =SUM(M18:M20) -> 0.0365
A22: Qde - Quantidade do Insumo (não pode ocorrer alteração pela Licitante) | K22: Fórmula Para Cálculo do B.D.I
A23: PU - Preço Unitário (composições padrão da Codevasf, já incluso o FatorK) | K23: BDI =(((1+A4+A1+A2)*(1+A3)*(1+B))/(1-C))-1
A24: PT - Preço Total (incluído encargos, taxas e impostos) - PT = Qde x PU
K25: Bonificação Sobre Despesas indiretas (B.D.I) = | M25: =(((1+M12+M9+M10)*(1+M11)*(1+M16))/(1-M21))-1 -> 0.146920122

Sheet PFP2.1_FatorKa
A1: DETALHAMENTO DOS ENCARGOS SOCIAIS: Ka | F1: CODIGO:
F2: PFP-2.1
A3: NOME DA CONSULTORA:
A5: PROJETO: | C5: CONTRATANTE: | F5: =PFP!J5 -> BASE:
A6: =PFP!A6 -> CONTRATAÇÃO DOS SERVIÇOS DE APOIO À FISCALIZAÇÃO PARA EXECUÇÃO DAS OBRAS DE ENGENHARIA, VISANDO A IMPLANTAÇÃO DE PONTE EM CONCRETO ARMADO SOBRE O RIO MELCHIOR, NA REGIÃO ADMINISTRATIVA DA CEILÂNDIA, DISTRITO FEDERAL. | C6: CODEVASF (SEDE) | F6: SINAPI/DF
A7: Cod | B7: DESCRIÇÃO | E7: % | F7: R$
A8: A | B8: ENCARGOS SOCIAIS BÁSICOS | E8: =ROUND(SUM(E9:E17),4) -> 0.378 | F8: =ROUND(E8*SUMIF(PFP!$B$8:$B$13,"MO1",PFP!$J$8:$J$13),2) -> 56124.84
A9: A1 | B9: INSS | E9: 0.2 | F9: =ROUND(E9*SUMIF(PFP!$B$8:$B$13,"MO1",PFP!$J$8:$J$13),2) -> 29695.68
A10: A2 | B10: SESI | E10: 0.015 | F10: =ROUND(E10*SUMIF(PFP!$B$8:$B$13,"MO1",PFP!$J$8:$J$13),2) -> 2227.18
A11: A3 | B11: SENAI | E11: 0.01 | F11: =ROUND(E11*SUMIF(PFP!$B$8:$B$13,"MO1",PFP!$J$8:$J$13),2) -> 1484.78
A12: A4 | B12: INCRA | E12: 0.002 | F12: =ROUND(E12*SUMIF(PFP!$B$8:$B$13,"MO1",PFP!$J$8:$J$13),2) -> 296.96
A13: A5 | B13: SEBRAE | E13: 0.006 | F13: =ROUND(E13*SUMIF(PFP!$B$8:$B$13,"MO1",PFP!$J$8:$J$13),2) -> 890.87
A14: A6 | B14: Salário Educação | E14: 0.025 | F14: =ROUND(E14*SUMIF(PFP!$B$8:$B$13,"MO1",PFP!$J$8:$J$13),2) -> 3711.96
A15: A7 | B15: Seguro Contra Acidentes de Trabalho | E15: 0.03 | F15: =ROUND(E15*SUMIF(PFP!$B$8:$B$13,"MO1",PFP!$J$8:$J$13),2) -> 4454.35
A16: A8 | B16: FGTS | E16: 0.08 | F16: =ROUND(E16*SUMIF(PFP!$B$8:$B$13,"MO1",PFP!$J$8:$J$13),2) -> 11878.27
A17: A9 | B17: SECONCI | E17: 0.01 | F17: =ROUND(E17*SUMIF(PFP!$B$8:$B$13,"MO1",PFP!$J$8:$J$13),2) -> 1484.78
A18: B | B18: ENCARGOS SOCIAIS QUE RECEBEM INCIDÊNCIA DE "A" | E18: =ROUND(SUM(E19:E25),4) -> 0.1579 | F18: =ROUND(E18*SUMIF(PFP!$B$8:$B$13,"MO1",PFP!$J$8:$J$13),2) -> 23444.74
A19: B3 | B19: Auxílio Enfermidade | E19: 0.0065 | F19: =ROUND(E19*SUMIF(PFP!$B$8:$B$13,"MO1",PFP!$J$8:$J$13),2) -> 965.11
A20: B4 | B20: 13º Salário | E20: 0.0833 | F20: =ROUND(E20*SUMIF(PFP!$B$8:$B$13,"MO1",PFP!$J$8:$J$13),2) -> 12368.25
A21: B5 | B21: Licença Paternidade | E21: 0.0005 | F21: =ROUND(E21*SUMIF(PFP!$B$8:$B$13,"MO1",PFP!$J$8:$J$13),2) -> 74.24
A22: B6 | B22: Faltas Justificadas | E22: 0.0056 | F22: =ROUND(E22*SUMIF(PFP!$B$8:$B$13,"MO1",PFP!$J$8:$J$13),2) -> 831.48
A23: B8 | B23: Auxílio Acidente de Trabalho | E23: 0.0007 | F23: =ROUND(E23*SUMIF(PFP!$B$8:$B$13,"MO1",PFP!$J$8:$J$13),2) -> 103.93
A24: B9 | B24: Férias Gozadas | E24: 0.061 | F24: =ROUND(E24*SUMIF(PFP!$B$8:$B$13,"MO1",PFP!$J$8:$J$13),2) -> 9057.18
A25: B10 | B25: Salário Maternidade | E25: 0.0003 | F25: =ROUND(E25*SUMIF(PFP!$B$8:$B$13,"MO1",PFP!$J$8:$J$13),2) -> 44.54
A26: C | B26: ENCARGOS SOCIAIS QUE NÃO RECEBEM INCIDÊNCIA DE "A" | E26: =ROUND(SUM(E27:E31),4) -> 0.1034 | F26: =ROUND(E26*SUMIF(PFP!$B$8:$B$13,"MO1",PFP!$J$8:$J$13),2) -> 15352.67
A27: C1 | B27: Aviso Prévio Indenizado | E27: 0.0324 | F27: =ROUND(E27*SUMIF(PFP!$B$8:$B$13,"MO1",PFP!$J$8:$J$13),2) -> 4810.7
A28: C2 | B28: Aviso Prévio Trabalhado | E28: 0.0008 | F28: =ROUND(E28*SUMIF(PFP!$B$8:$B$13,"MO1",PFP!$J$8:$J$13),2) -> 118.78
A29: C3 | B29: Férias Indenizadas | E29: 0.0417 | F29: =ROUND(E29*SUMIF(PFP!$B$8:$B$13,"MO1",PFP!$J$8:$J$13),2) -> 6191.55
A30: C4 | B30: Depósito Rescisão Sem Justa Causa | E30: 0.0258 | F30: =ROUND(E30*SUMIF(PFP!$B$8:$B$13,"MO1",PFP!$J$8:$J$13),2) -> 3830.74
A31: C5 | B31: Indenização Adicional | E31: 0.0027 | F31: =ROUND(E31*SUMIF(PFP!$B$8:$B$13,"MO1",PFP!$J$8:$J$13),2) -> 400.89
A32: D | B32: REINCIDÊNCIAS | E32: =ROUND(SUM(E33:E34),4) -> 0.0626 | F32: =ROUND(E32*SUMIF(PFP!$B$8:$B$13,"MO1",PFP!$J$8:$J$13),2) -> 9294.75
A33: D1 | B33: Reincidência de "A" sobre "B" | E33: 0.0597 | F33: =ROUND(E33*SUMIF(PFP!$B$8:$B$13,"MO1",PFP!$J$8:$J$13),2) -> 8864.16
A34: D2 | B34: Reincidência de "A" sobre Aviso Prévio Trabalhado e reincidência do FGTS sobre Aviso Prévio Indenizado | E34: 0.0029 | F34: =ROUND(E34*SUMIF(PFP!$B$8:$B$13,"MO1",PFP!$J$8:$J$13),2) -> 430.59
A35: K1a | B35: ENCARGOS SOCIAIS | E35: =ROUND(E8+E18+E26+E32,4) -> 0.7019 | F35: =ROUND(E35*SUMIF(PFP!$B$8:$B$13,"MO1",PFP!$J$8:$J$13),2) -> 104216.99
A36: Ka | B36: TAXA DE RESSARCIMENTO DE DESPESAS E ENCARGOS SOBRE MO1 | E36: =ROUND((1+E35+[336]PFP3_FatorKd!E13)*(1+[336]PFP3_FatorKd!E12)*(1+[336]PFP3_FatorKd!E8),4) -> 2.1442
A37: OBSERVAÇÃO: CELETISTAS E EQUIVALENTES
A38: 1 - DISCRIMINAR OS ENCARGOS SOCIAIS COM SEUS RESPECTIVOS PERCENTUAS TOTALIZANDO OS MESMOS.
A39: 2 - APLICAR O % TOTAL P/ CALCULAR OS E. SOCIAIS INCIDENTES NA MÃO-DE-OBRA CELETISTAS
A40: Ka - Taxa de Ressarcimento de Despesas e Encargos sobre a Mão de Obra CELETISTA (incide apenas no Insumo Codigo MO1)
A41: Ka = (1 + K1 + K2) x (1 + K3) x (1 + K4)

Sheet PFP2.2_FatorKb
A1: DETALHAMENTO DOS ENCARGOS SOCIAIS: Kb | F1: CODIGO:
F2: PFP-2.2
A3: NOME DA CONSULTORA:
A5: PROJETO: | C5: CONTRATANTE: | F5: ='PFP2.1_FatorKa'!F5 -> BASE:
A6: =PFP!A6 -> CONTRATAÇÃO DOS SERVIÇOS DE APOIO À FISCALIZAÇÃO PARA EXECUÇÃO DAS OBRAS DE ENGENHARIA, VISANDO A IMPLANTAÇÃO DE PONTE EM CONCRETO ARMADO SOBRE O RIO MELCHIOR, NA REGIÃO ADMINISTRATIVA DA CEILÂNDIA, DISTRITO FEDERAL. | C6: CODEVASF (SEDE) | F6: ='PFP2.1_FatorKa'!F6 -> SINAPI/DF
A7: Cod | B7: DESCRIÇÃO | E7: % | F7: R$
A8: A | B8: ENCARGOS SOCIAIS BÁSICOS | E8: =ROUND(SUM(E9:E16),4) -> 0.2 | F8: =ROUND(E8*SUMIF(PFP!$B$8:$B$13,"MO2",PFP!$J$8:$J$13),2) -> 0
A9: A1 | B9: INSS | E9: 0.2 | F9: =ROUND(E9*SUMIF(PFP!$B$8:$B$13,"MO2",PFP!$J$8:$J$13),2) -> 0
A10: A2 | B10: SESI | E10: 0 | F10: =ROUND(E10*SUMIF(PFP!$B$8:$B$13,"MO2",PFP!$J$8:$J$13),2) -> 0
A11: A3 | B11: SENAI | E11: 0 | F11: =ROUND(E11*SUMIF(PFP!$B$8:$B$13,"MO2",PFP!$J$8:$J$13),2) -> 0
A12: A4 | B12: INCRA | E12: 0 | F12: =ROUND(E12*SUMIF(PFP!$B$8:$B$13,"MO2",PFP!$J$8:$J$13),2) -> 0
A13: A5 | B13: SEBRAE | E13: 0 | F13: =ROUND(E13*SUMIF(PFP!$B$8:$B$13,"MO2",PFP!$J$8:$J$13),2) -> 0
A14: A6 | B14: Salário Educação | E14: 0 | F14: =ROUND(E14*SUMIF(PFP!$B$8:$B$13,"MO2",PFP!$J$8:$J$13),2) -> 0
A15: A7 | B15: Seguro Contra Acidentes de Trabalho | E15: 0 | F15: =ROUND(E15*SUMIF(PFP!$B$8:$B$13,"MO2",PFP!$J$8:$J$13),2) -> 0
A16: A8 | B16: FGTS | E16: 0 | F16: =ROUND(E16*SUMIF(PFP!$B$8:$B$13,"MO2",PFP!$J$8:$J$13),2) -> 0
A17: B | B17: ENCARGOS SOCIAIS QUE RECEBEM INCIDÊNCIA DE "A" | E17: =ROUND(SUM(E18:E24),4) -> 0 | F17: =ROUND(E17*SUMIF(PFP!$B$8:$B$13,"MO2",PFP!$J$8:$J$13),2) -> 0
A18: B3 | B18: Auxílio Enfermidade | E18: 0 | F18: =ROUND(E18*SUMIF(PFP!$B$8:$B$13,"MO2",PFP!$J$8:$J$13),2) -> 0
A19: B4 | B19: 13º Salário | E19: 0 | F19: =ROUND(E19*SUMIF(PFP!$B$8:$B$13,"MO2",PFP!$J$8:$J$13),2) -> 0
A20: B5 | B20: Licença Paternidade | E20: 0 | F20: =ROUND(E20*SUMIF(PFP!$B$8:$B$13,"MO2",PFP!$J$8:$J$13),2) -> 0
A21: B6 | B21: Faltas Justificadas | E21: 0 | F21: =ROUND(E21*SUMIF(PFP!$B$8:$B$13,"MO2",PFP!$J$8:$J$13),2) -> 0
A22: B8 | B22: Auxílio Acidente de Trabalho | E22: 0 | F22: =ROUND(E22*SUMIF(PFP!$B$8:$B$13,"MO2",PFP!$J$8:$J$13),2) -> 0
A23: B9 | B23: Férias Gozadas | E23: 0 | F23: =ROUND(E23*SUMIF(PFP!$B$8:$B$13,"MO2",PFP!$J$8:$J$13),2) -> 0
A24: B10 | B24: Salário Maternidade | E24: 0 | F24: =ROUND(E24*SUMIF(PFP!$B$8:$B$13,"MO2",PFP!$J$8:$J$13),2) -> 0
A25: C | B25: ENCARGOS SOCIAIS QUE NÃO RECEBEM INCIDÊNCIA DE "A" | E25: =ROUND(SUM(E26:E30),4) -> 0 | F25: =ROUND(E25*SUMIF(PFP!$B$8:$B$13,"MO2",PFP!$J$8:$J$13),2) -> 0
A26: C1 | B26: Aviso Prévio Indenizado | E26: 0 | F26: =ROUND(E26*SUMIF(PFP!$B$8:$B$13,"MO2",PFP!$J$8:$J$13),2) -> 0
A27: C2 | B27: Aviso Prévio Trabalhado | E27: 0 | F27: =ROUND(E27*SUMIF(PFP!$B$8:$B$13,"MO2",PFP!$J$8:$J$13),2) -> 0
A28: C3 | B28: Férias Indenizadas | E28: 0 | F28: =ROUND(E28*SUMIF(PFP!$B$8:$B$13,"MO2",PFP!$J$8:$J$13),2) -> 0
A29: C4 | B29: Depósito Rescisão Sem Justa Causa | E29: 0 | F29: =ROUND(E29*SUMIF(PFP!$B$8:$B$13,"MO2",PFP!$J$8:$J$13),2) -> 0
A30: C5 | B30: Indenização Adicional | E30: 0 | F30: =ROUND(E30*SUMIF(PFP!$B$8:$B$13,"MO2",PFP!$J$8:$J$13),2) -> 0
A31: D | B31: REINCIDÊNCIAS | E31: =ROUND(SUM(E32:E33),4) -> 0 | F31: =ROUND(E31*SUMIF(PFP!$B$8:$B$13,"MO2",PFP!$J$8:$J$13),2) -> 0
A32: D1 | B32: Reincidência de "A" sobre "B" | E32: =ROUND(E8*E17,4) -> 0 | F32: =ROUND(E32*SUMIF(PFP!$B$8:$B$13,"MO2",PFP!$J$8:$J$13),2) -> 0
A33: D2 | B33: Reincidência de "A" sobre Aviso Prévio Trabalhado e reincidência do FGTS sobre Aviso Prévio Indenizado | E33: =ROUND((E27*E8)+(E26*E16),4) -> 0 | F33: =ROUND(E33*SUMIF(PFP!$B$8:$B$13,"MO2",PFP!$J$8:$J$13),2) -> 0
A34: K1b | B34: ENCARGOS SOCIAIS | E34: =ROUND(E8+E17+E25+E31,4) -> 0.2 | F34: =ROUND(E34*SUMIF(PFP!$B$8:$B$13,"MO2",PFP!$J$8:$J$13),2) -> 0
A35: Kb | B35: TAXA DE RESSARCIMENTO DE DESPESAS E ENCARGOS SOBRE MO2 | E35: =ROUND((1+E34+PFP3_FatorKd!E13)*(1+PFP3_FatorKd!E12)*(1+PFP3_FatorKd!E8),4) -> 1.5247
A36: OBSERVAÇÃO: AUTÔNOMOS E EQUIVALENTES
A37: 1 - DISCRIMINAR OS ENCARGOS SOCIAIS COM SEUS RESPECTIVOS PERCENTUAS TOTALIZANDO OS MESMOS.
A38: 2 - APLICAR O % TOTAL P/ CALCULAR OS E. SOCIAIS INCIDENTES NA MÃO-DE-OBRA AUTONÔMOS
A39: Kb - Taxa de Ressarcimento de Despesas e Encargos sobre a Mão de Obra AUTONÔMA (incide apenas no Insumo Codigo MO2)
A40: Kb = (1 + K1 + K2) x (1 + K3) x (1 + K4)

Sheet PFP2.3_FatorKc
A1: DETALHAMENTO DOS ENCARGOS SOCIAIS: Kc | F1: CODIGO:
F2: PFP-2.3
A3: NOME DA CONSULTORA:
A5: PROJETO: | C5: CONTRATANTE: | F5: ='PFP2.2_FatorKb'!F5 -> BASE:
A6: =PFP!A6 -> CONTRATAÇÃO DOS SERVIÇOS DE APOIO À FISCALIZAÇÃO PARA EXECUÇÃO DAS OBRAS DE ENGENHARIA, VISANDO A IMPLANTAÇÃO DE PONTE EM CONCRETO ARMADO SOBRE O RIO MELCHIOR, NA REGIÃO ADMINISTRATIVA DA CEILÂNDIA, DISTRITO FEDERAL. | C6: CODEVASF (SEDE) | F6: ='PFP2.2_FatorKb'!F6 -> SINAPI/DF
A7: Cod | B7: DESCRIÇÃO | E7: % | F7: R$
A8: A | B8: ENCARGOS SOCIAIS BÁSICOS | E8: =SUM(E9:E16) -> 0 | F8: =ROUND(E8*SUMIF(PFP!$B$8:$B$13,"MO3",PFP!$J$8:$J$13),2) -> 0
A9: A1 | B9: INSS | E9: 0 | F9: =ROUND(E9*SUMIF(PFP!$B$8:$B$13,"MO3",PFP!$J$8:$J$13),2) -> 0
A10: A2 | B10: SESI | E10: 0 | F10: =ROUND(E10*SUMIF(PFP!$B$8:$B$13,"MO3",PFP!$J$8:$J$13),2) -> 0
A11: A3 | B11: SENAI | E11: 0 | F11: =ROUND(E11*SUMIF(PFP!$B$8:$B$13,"MO3",PFP!$J$8:$J$13),2) -> 0
A12: A4 | B12: INCRA | E12: 0 | F12: =ROUND(E12*SUMIF(PFP!$B$8:$B$13,"MO3",PFP!$J$8:$J$13),2) -> 0
A13: A5 | B13: SEBRAE | E13: 0 | F13: =ROUND(E13*SUMIF(PFP!$B$8:$B$13,"MO3",PFP!$J$8:$J$13),2) -> 0
A14: A6 | B14: Salário Educação | E14: 0 | F14: =ROUND(E14*SUMIF(PFP!$B$8:$B$13,"MO3",PFP!$J$8:$J$13),2) -> 0
A15: A7 | B15: Seguro Contra Acidentes de Trabalho | E15: 0 | F15: =ROUND(E15*SUMIF(PFP!$B$8:$B$13,"MO3",PFP!$J$8:$J$13),2) -> 0
A16: A8 | B16: FGTS | E16: 0 | F16: =ROUND(E16*SUMIF(PFP!$B$8:$B$13,"MO3",PFP!$J$8:$J$13),2) -> 0
A17: B | B17: ENCARGOS SOCIAIS QUE RECEBEM INCIDÊNCIA DE "A" | E17: =ROUND(SUM(E18:E24),4) -> 0 | F17: =ROUND(E17*SUMIF(PFP!$B$8:$B$13,"MO3",PFP!$J$8:$J$13),2) -> 0
A18: B3 | B18: Auxílio Enfermidade | E18: 0 | F18: =ROUND(E18*SUMIF(PFP!$B$8:$B$13,"MO3",PFP!$J$8:$J$13),2) -> 0
A19: B4 | B19: 13º Salário | E19: 0 | F19: =ROUND(E19*SUMIF(PFP!$B$8:$B$13,"MO3",PFP!$J$8:$J$13),2) -> 0
A20: B5 | B20: Licença Paternidade | E20: 0 | F20: =ROUND(E20*SUMIF(PFP!$B$8:$B$13,"MO3",PFP!$J$8:$J$13),2) -> 0
A21: B6 | B21: Faltas Justificadas | E21: 0 | F21: =ROUND(E21*SUMIF(PFP!$B$8:$B$13,"MO3",PFP!$J$8:$J$13),2) -> 0
A22: B8 | B22: Auxílio Acidente de Trabalho | E22: 0 | F22: =ROUND(E22*SUMIF(PFP!$B$8:$B$13,"MO3",PFP!$J$8:$J$13),2) -> 0
A23: B9 | B23: Férias Gozadas | E23: 0 | F23: =ROUND(E23*SUMIF(PFP!$B$8:$B$13,"MO3",PFP!$J$8:$J$13),2) -> 0
A24: B10 | B24: Salário Maternidade | E24: 0 | F24: =ROUND(E24*SUMIF(PFP!$B$8:$B$13,"MO3",PFP!$J$8:$J$13),2) -> 0
A25: C | B25: ENCARGOS SOCIAIS QUE NÃO RECEBEM INCIDÊNCIA DE "A" | E25: =ROUND(SUM(E26:E30),4) -> 0 | F25: =ROUND(E25*SUMIF(PFP!$B$8:$B$13,"MO3",PFP!$J$8:$J$13),2) -> 0
A26: C1 | B26: Aviso Prévio Indenizado | E26: 0 | F26: =ROUND(E26*SUMIF(PFP!$B$8:$B$13,"MO3",PFP!$J$8:$J$13),2) -> 0
A27: C2 | B27: Aviso Prévio Trabalhado | E27: 0 | F27: =ROUND(E27*SUMIF(PFP!$B$8:$B$13,"MO3",PFP!$J$8:$J$13),2) -> 0
A28: C3 | B28: Férias Indenizadas | E28: 0 | F28: =ROUND(E28*SUMIF(PFP!$B$8:$B$13,"MO3",PFP!$J$8:$J$13),2) -> 0
A29: C4 | B29: Depósito Rescisão Sem Justa Causa | E29: 0 | F29: =ROUND(E29*SUMIF(PFP!$B$8:$B$13,"MO3",PFP!$J$8:$J$13),2) -> 0
A30: C5 | B30: Indenização Adicional | E30: 0 | F30: =ROUND(E30*SUMIF(PFP!$B$8:$B$13,"MO3",PFP!$J$8:$J$13),2) -> 0
A31: D | B31: REINCIDÊNCIAS | E31: =ROUND(SUM(E32:E33),4) -> 0 | F31: =ROUND(E31*SUMIF(PFP!$B$8:$B$13,"MO3",PFP!$J$8:$J$13),2) -> 0
A32: D1 | B32: Reincidência de "A" sobre "B" | E32: =ROUND(E8*E17,4) -> 0 | F32: =ROUND(E32*SUMIF(PFP!$B$8:$B$13,"MO3",PFP!$J$8:$J$13),2) -> 0
A33: D2 | B33: Reincidência de "A" sobre Aviso Prévio Trabalhado e reincidência do FGTS sobre Aviso Prévio Indenizado | E33: =ROUND(E8*E27,4)+ROUND(E26*E11,4) -> 0 | F33: =ROUND(E33*SUMIF(PFP!$B$8:$B$13,"MO3",PFP!$J$8:$J$13),2) -> 0
A34: K1c | B34: ENCARGOS SOCIAIS | E34: =ROUND(E8+E17+E25+E31,4) -> 0 | F34: =ROUND(E34*SUMIF(PFP!$B$8:$B$13,"MO3",PFP!$J$8:$J$13),2) -> 0
A35: Kc | B35: TAXA DE RESSARCIMENTO DE DESPESAS E ENCARGOS SOBRE MO3 | E35: =ROUND((1+E34+PFP3_FatorKd!E13)*(1+PFP3_FatorKd!E12)*(1+PFP3_FatorKd!E8),4) -> 1.2827
A36: OBSERVAÇÃO: SOCIETÁRIOS E EQUIVALENTES
A37: 1 - DISCRIMINAR OS ENCARGOS SOCIAIS COM SEUS RESPECTIVOS PERCENTUAS TOTALIZANDO OS MESMOS.
A38: 2 - APLICAR O % TOTAL P/ CALCULAR OS E. SOCIAIS INCIDENTES NA MÃO-DE-OBRA DE SOCIETÁRIOS
A39: Kc - Taxa de Ressarcimento de Despesas e Encargos sobre a Mão de Obra SOCIETÁRIA (incide apenas no Insumo Codigo MO3)
A40: Kc = (1 + K1 + K2) x (1 + K3) x (1 + K4)

Sheet PFP3_FatorKd
A1: DESPESAS FISCAIS E CUSTOS DIVERSOS: Kd | F1: CODIGO:
F2: PFP-3
A3: NOME DA CONSULTORA:
A5: PROJETO: | C5: CONTRATANTE: | F5: ='PFP2.3_FatorKc'!F5 -> BASE:
A6: =PFP!A6 -> CONTRATAÇÃO DOS SERVIÇOS DE APOIO À FISCALIZAÇÃO PARA EXECUÇÃO DAS OBRAS DE ENGENHARIA, VISANDO A IMPLANTAÇÃO DE PONTE EM CONCRETO ARMADO SOBRE O RIO MELCHIOR, NA REGIÃO ADMINISTRATIVA DA CEILÂNDIA, DISTRITO FEDERAL. | C6: CODEVASF (SEDE) | F6: ='PFP2.3_FatorKc'!F6 -> SINAPI/DF
A7: Cod | B7: DESCRIÇÃO1 | D7: % preço2 | E7: % custo4 | F7: R$
A8: K4 | B8: TRIBUTOS | D8: =ROUND(D9+D10+D11,4) -> 0.124 | E8: =ROUND(E9+E10+E11,4) -> 0.1416 | F8: =E8*SUM(SUMIF(PFP!$B$8:$B$13,"MO1",PFP!$J$8:$J$13)*(1+'PFP2.1_FatorKa'!$E$35)+SUMIF(PFP!$B$8:$B$13,"MO2",PFP!$J$8:$J$13)*(1+'PFP2.2_FatorKb'!$E$34)+SUMIF(PFP!$B$8:$B$13,"<>MO*",PFP!$J$8:$J$13)+$F$13+$F$12) -> 46486.44036
A9: K4.1 | B9: ISS | D9: 0.05 | E9: =ROUND((1/(1-$D$8))*D9,4) -> 0.0571 | F9: =E9*SUM(SUMIF(PFP!$B$8:$B$13,"MO1",PFP!$J$8:$J$13)*(1+'PFP2.1_FatorKa'!$E$35)+SUMIF(PFP!$B$8:$B$13,"MO2",PFP!$J$8:$J$13)*(1+'PFP2.2_FatorKb'!$E$34)+SUMIF(PFP!$B$8:$B$13,"<>MO*",PFP!$J$8:$J$13)+$F$13+$F$12) -> 18745.59142
A10: K4.2 | B10: PIS3 - aliquota efetiva aplicavel percentual-desconto | D10: =ROUND(1.65%*0.8,4) -> 0.0132 | E10: =ROUND((1/(1-$D$8))*D10,4) -> 0.0151 | F10: =E10*SUM(SUMIF(PFP!$B$8:$B$13,"MO1",PFP!$J$8:$J$13)*(1+'PFP2.1_FatorKa'!$E$35)+SUMIF(PFP!$B$8:$B$13,"MO2",PFP!$J$8:$J$13)*(1+'PFP2.2_FatorKb'!$E$34)+SUMIF(PFP!$B$8:$B$13,"<>MO*",PFP!$J$8:$J$13)+$F$13+$F$12) -> 4957.240463
A11: K4.3 | B11: COFINS3 - aliquota efetiva aplicavel percentual-desconto | D11: =ROUND(7.6%*0.8,4) -> 0.0608 | E11: =ROUND((1/(1-$D$8))*D11,4) -> 0.0694 | F11: =E11*SUM(SUMIF(PFP!$B$8:$B$13,"MO1",PFP!$J$8:$J$13)*(1+'PFP2.1_FatorKa'!$E$35)+SUMIF(PFP!$B$8:$B$13,"MO2",PFP!$J$8:$J$13)*(1+'PFP2.2_FatorKb'!$E$34)+SUMIF(PFP!$B$8:$B$13,"<>MO*",PFP!$J$8:$J$13)+$F$13+$F$12) -> 22783.60848
A12: K3 | B12: REMUNERAÇÃO DA EMPRESA (LUCRO) | E12: 0.06 | F12: =E12*SUM(SUMIF(PFP!$B$8:$B$13,"MO1",PFP!$J$8:$J$13)*(1+'PFP2.1_FatorKa'!$E$35)+SUMIF(PFP!$B$8:$B$13,"MO2",PFP!$J$8:$J$13)*(1+'PFP2.2_FatorKb'!$E$34)+SUMIF(PFP!$B$8:$B$13,"<>MO*",PFP!$J$8:$J$13)+$F$13) -> 18582.68323
A13: K2 | B13: CUSTOS DA ADMINISTRAÇÃO CENTRAL | E13: =ROUND(SUM(E14:E16),4) -> 0.06 | F13: =ROUND(E13*SUMIF(PFP!$B$8:$B$13,"MO*",PFP!$J$8:$J$13),2) -> 8908.7
A14: K2.1 | B14: Custos da administração central da empresa (diretoria, pessoal técnico de apoio e pessoal administrativo não diretamente vinculado à prestação dos serviços) | E14: 0.03 | F14: =ROUND(E14*SUMIF(PFP!$B$8:$B$13,"MO*",PFP!$J$8:$J$13),2) -> 4454.35
A15: K2.2 | B15: Outras despesas que afetam o custo de produção como treinamento, biblioteca, programa de qualidade, programa de benefícios, auditoria interna e externa | E15: 0.02 | F15: =ROUND(E15*SUMIF(PFP!$B$8:$B$13,"MO*",PFP!$J$8:$J$13),2) -> 2969.57
A16: K2.3 | B16: Despesas fixas e variaveis com patrimônio, aluguéis, comunicação, manutenção e transporte não diretamente relacionados com o custo direto dos serviços | E16: 0.01 | F16: =ROUND(E16*SUMIF(PFP!$B$8:$B$13,"MO*",PFP!$J$8:$J$13),2) -> 1484.78
A17: Kd | B17: TAXA RESSARCIMENTO DE DESPESAS SOBRE CUSTOS DIVERSOS | E17: =ROUND((1+E12)*(1+E8),4) -> 1.2101
A18: NOME DO INFORMANTE: | E18: QUALIFICAÇÃO:
A20: ASSINATURA: | E20: DATA:
A22: Observação:
A23: 1 - RELACIONAR OS CUSTOS DE ADMINISTRAÇÃO COM RESPECTIVOS PERCENTUAIS INCIDENTES NA MÃO -DE-OBRA
A24: 1 - DISCRIMINAR OS TRIBUTOS QUE INCIDEM SOBRE OS CUSTOS DA PRESTAÇÃO DOS SERVIÇOS
A25: 2 - K4 = INDICAR % DE CADA TRIBUTO E A SOMA DOS MESMOS (ex: ISS 5% + PIS 1,65% + COFINS 7,60% = 14,25%)
A26: 3 - PIS e COFINS, Regime de Incidencia Acumulativa (0,65% e 3,00% - sem percentual de desconto) ou em Regime de Incidencia Não Acumulativa (1,65% e 7,60% - aplicável percentual de desconto) de acordo com a forma de apuração do lucro no IRPJ. APRESENTAR COMPROVANTES de aproveitamento de créditos tributários dos últimos 12 meses em caso de aplicação de "percentual de desconto".
A27: 4 - AS DESPESAS FISCAIS (K4) INCIDEM SOBRE O TOTAL DA FATURA E NÃO SOBRE OS CUSTOS INCORRIDOS,
A28: DEVENDO SER CALCULADO O K4' APLICANDO-SE A SEGUINTE FÓRMULA:
A29: K4' = { [ 1 / ( 1 - K4) ] - 1 } x 100
A30: =CONCATENATE(" K4' = { [ 1 / ( 1 - ",D8," ) ] - 1 } x 100") -> K4' = { [ 1 / ( 1 - 0,124 ) ] - 1 } x 100
A31: Kc - Taxa de Ressarcimento de Despesas sobre Custos Diversos (incide sobre os Insumos Codigo DP e EM)
A32: Kc = (1 + K3) x (1 + K4)
A33: K2 - Incide sobre o Custo Total (CT) da Mão de Obra (MO* = MO1 + MO2)
A34: K3 - Incide sobre o Custo Total (CT) Mão de Obra com encargos (MO1 x Ka ou MO2 x Kb), demais Custos (DP e EM), e Custos da Administração Central (K2)
A35: K4 - Incide sobre o Custo Total (CT) Mão de Obra com encargos (MO1 x Ka ou MO2 x Kb), demais Custos (DP e EM), e Custos da Administração Central (K2) e Lucro (K3)

Sheet Cronograma Físico-Financeiro
B1: CRONOGRAMA FÍSICO-FINANCEIRO
D4: Mês 1 | E4: Mês 2 | F4: Mês 3 | G4: Mês 4 | H4: Mês 5 | I4: Mês 6 | J4: Mês 7 | K4: Mês 8
B5: =PFP!D8 -> Engenheiro Júnior | C5: =PFP!K8 -> 221332.9 | D5: =D6*$C$5 -> 27666.6125 | E5: =E6*$C$5 -> 27666.6125 | F5: =F6*$C$5 -> 27666.6125 | G5: 27666.6125 | H5: =H6*$C$5 -> 27666.6125 | I5: =I6*$C$5 -> 27666.6125 | J5: 27666.6125 | K5: 27666.6125 | L5: =SUM(D5:K5) -> 221332.9
D6: =1/8 -> 0.125 | E6: =1/8 -> 0.125 | F6: 0.125 | G6: 0.125 | H6: 0.125 | I6: 0.125 | J6: 0.125 | K6: 0.125 | L6: 1
B7: =PFP!D9 -> Técnico - Profissional Especial | C7: =PFP!K9 -> 55627.24 | D7: =D8*$C$7 -> 6953.405 | E7: =E8*$C$7 -> 6953.405 | F7: 6953.405 | G7: 6953.405 | H7: 6953.405 | I7: 6953.405 | J7: 6953.405 | K7: 6953.405 | L7: 55627.24
D8: =1/8 -> 0.125 | E8: =1/8 -> 0.125 | F8: 0.125 | G8: 0.125 | H8: 0.125 | I8: 0.125 | J8: 0.125 | K8: 0.125 | L8: 1
B9: =PFP!D10 -> Técnico Auxiliar (Laboratorista) | C9: =PFP!K10 -> 41407.25 | D9: =D10*$C$9 -> 5175.90625 | E9: =E10*$C$9 -> 5175.90625 | F9: 5175.90625 | G9: 5175.90625 | H9: 5175.90625 | I9: 5175.90625 | J9: 5175.90625 | K9: 5175.90625 | L9: 41407.25
D10: 0.125 | E10: 0.125 | F10: 0.125 | G10: 0.125 | H10: 0.125 | I10: 0.125 | J10: 0.125 | K10: 0.125 | L10: 1
B11: =PFP!D11 -> Relatório Semanal de Obras | C11: =PFP!K11 -> 19613.85525 | D11: =D12*$C$11 -> 2451.731906 | E11: =E12*$C$11 -> 2451.731906 | F11: 2451.731906 | G11: 2451.731906 | H11: 2451.731906 | I11: 2451.731906 | J11: 2451.731906 | K11: 2451.731906 | L11: 19613.85525
D12: 0.125 | E12: 0.125 | F12: 0.125 | G12: 0.125 | H12: 0.125 | I12: 0.125 | J12: 0.125 | K12: 0.125 | L12: 1
B13: =PFP!D12 -> Consultoria de Interpretação de Projeto para Execução | C13: =PFP!K12 -> 26573.32406 | D13: =D14*$C$13 -> 3321.665508 | E13: =E14*$C$13 -> 3321.665508 | F13: 3321.665508 | G13: 3321.665508 | H13: 3321.665508 | I13: 3321.665508 | J13: 3321.665508 | K13: 3321.665508 | L13: 26573.32406
D14: =1/8 -> 0.125 | E14: =1/8 -> 0.125 | F14: 0.125 | G14: 0.125 | H14: 0.125 | I14: 0.125 | J14: 0.125 | K14: 0.125 | L14: 1
B15: =PFP!D13 -> Levantamento Topográfico | C15: =PFP!K13 -> 12027.46222 | D15: =D16*$C$15 -> 1503.432778 | E15: =E16*$C$15 -> 1503.432778 | F15: 1503.432778 | G15: 1503.432778 | H15: 1503.432778 | I15: 1503.432778 | J15: 1503.432778 | K15: 1503.432778 | L15: 12027.46222
D16: 0.125 | E16: 0.125 | F16: 0.125 | G16: 0.125 | H16: 0.125 | I16: 0.125 | J16: 0.125 | K16: 0.125 | L16: 1
B17: =PFP!D14 -> Veículo leve - 71 a 115 CV | C17: =PFP!K14 -> 34135.12 | D17: =D18*$C$17 -> 4266.89 | E17: =E18*$C$17 -> 4266.89 | F17: 4266.89 | G17: 4266.89 | H17: 4266.89 | I17: 4266.89 | J17: 4266.89 | K17: 4266.89 | L17: 34135.12
D18: 0.125 | E18: 0.125 | F18: 0.125 | G18: 0.125 | H18: 0.125 | I18: 0.125 | J18: 0.125 | K18: 0.125 | L18: 1
B19: =PFP!D15 -> Infraestrutura e Equipamentos de Escritório | C19: =PFP!K15 -> 33725.87 | D19: =D20*$C$19 -> 4215.73375 | E19: =E20*$C$19 -> 4215.73375 | F19: 4215.73375 | G19: 4215.73375 | H19: 4215.73375 | I19: 4215.73375 | J19: 4215.73375 | K19: 4215.73375 | L19: 33725.87
D20: 0.125 | E20: 0.125 | F20: 0.125 | G20: 0.125 | H20: 0.125 | I20: 0.125 | J20: 0.125 | K20: 0.125 | L20: 1
B21: =PFP!D16 -> Encargos Complementares Adicionais | C21: =PFP!K16 -> 33172.91 | D21: =D22*$C$21 -> 4146.61375 | E21: 4146.61375 | F21: 4146.61375 | G21: 4146.61375 | H21: 4146.61375 | I21: 4146.61375 | J21: 4146.61375 | K21: 4146.61375 | L21: 33172.91
D22: 0.125 | E22: 0.125 | F22: 0.125 | G22: 0.125 | H22: 0.125 | I22: 0.125 | J22: 0.125 | K22: 0.125 | L22: 1
B24: NO MÊS | D24: =D5+D7+D9+D11+D13+D15+D17+D21+D19 -> 59701.99144 | E24: =E5+E7+E9+E11+E13+E15+E17+E21+E19 -> 59701.99144 | F24: 59701.99144 | G24: 59701.99144 | H24: 59701.99144 | I24: 59701.99144 | J24: 59701.99144 | K24: 59701.99144 | L24: =SUM(D24:K24) -> 477615.9315
D25: =D24/SUM($C$5:$C$22) -> 0.125 | E25: 0.125 | F25: 0.125 | G25: 0.125 | H25: 0.125 | I25: 0.125 | J25: 0.125 | K25: 0.125 | L25: =SUM(D25:K25) -> 1
C26: DESEMBOLSO (80% do Subproduto) | D26: =D24*0.8 -> 47761.59315 | E26: =E24*0.8 -> 47761.59315 | F26: 47761.59315 | G26: 47761.59315 | H26: 47761.59315 | I26: 47761.59315 | J26: 47761.59315 | K26: =L24-SUM(D26:J26) -> 143284.7795 | L26: =SUM(D26:K26) -> 477615.9315
D27: =D26/SUM($C$5:$C$22) -> 0.1 | E27: 0.1 | F27: 0.1 | G27: 0.1 | H27: 0.1 | I27: 0.1 | J27: 0.1 | K27: 0.3 | L27: =SUM(D27:K27) -> 1
B28: ACUMULADO | D28: =D24 -> 59701.99144 | E28: =D28+E24 -> 119403.9829 | F28: 179105.9743 | G28: 238807.9658 | H28: =G28+H24 -> 298509.9572 | I28: =H28+I24 -> 358211.9486 | J28: =I28+J24 -> 417913.9401 | K28: =J28+K24 -> 477615.9315
D29: =D25 -> 0.125 | E29: 0.25 | F29: 0.375 | G29: 0.5 | H29: 0.625 | I29: 0.75 | J29: 0.875 | K29: 1

Sheet CPU-VEICULO_PickUp (hidden)
A5: Composição de Preços de Locação de Veículo tipo pick-up
B6: Data de atualização: | C6: 2025-01-22 | E6: CV | F6: Média | G6: Mediana | K6: CV | L6: Média | M6: Mediana | V6: CV | W6: Média | X6: Mediana
A7: CODEVASF | E7: =_xlfn.STDEV.S(E10:H10)/AVERAGE(E10:H10) -> 0.09461804749 | F7: =AVERAGE(E10:H10) -> 200477 | G7: =MEDIAN(E10:H10) -> 205565.5 | K7: =_xlfn.STDEV.S(L9:S9)/AVERAGE(L9:S9) -> 0.2049193683 | L7: =AVERAGE(L9:S9) -> 34.54857143 | M7: =MEDIAN(L9:S9) -> 30.91 | V7: =_xlfn.STDEV.S(W9:AD9)/AVERAGE(W9:AD9) -> 0.1241023561 | W7: =AVERAGE(W9:AD9) -> 499.0190625 | X7: =MEDIAN(W9:AD9) -> 499.45
A8: OBS: Preço sem BDI e sem motorista BDI= | E8: Preço FIPE | J8: PRODUTO | K8: MENOR (MÉDIA, MEDIANA) | L8: COT. 1 | M8: COT. 2 | N8: COT. 3 | O8: COT. 4 | P8: COT. 5 | Q8: COT. 6 | R8: COT. 7 | S8: COT. 8 | U8: PRODUTO | V8: MENOR (MÉDIA, MEDIANA) | W8: COT. 1 | X8: COT. 2 | Y8: COT. 3 | Z8: COT. 4 | AA8: COT. 5 | AB8: COT. 6 | AC8: COT. 7 | AD8: COT. 8
A9: Veículo tipo pick-up, cabine dupla - 2.0 16V 4x4 diesel Aut. | E9: Toro Ultra 2.0 16V 4x4 TB Diesel Aut. | F9: Toro Freedom 2.0 16V 4x4 TB Diesel Aut. | G9: Toro Volcano 2.0 16V 4x4 TB Diesel Aut. | H9: Toro Ranch 2.0 16V 4x4 TB Diesel Aut. | J9: LUBRIFICANTE 5W30 | K9: =SMALL(L7:M7,1) -> 30.91 | L9: 33.33 | M9: 26.9 | N9: 30.9 | O9: 30.9 | P9: 30.91 | Q9: 46 | R9: 42.9 | U9: Pneu 225/65 R17 | V9: =SMALL(W7:X7,1) -> 499.0190625 | W9: 499 | X9: 479.9 | Y9: 565.25 | Z9: 393.38 | AA9: 449.9 | AB9: =2059.44/4 -> 514.86 | AC9: =2359.85/4 -> 589.9625 | AD9: 499.9
B10: Custo Mensal (R$): | C10: =C51 -> 3838.419606 | E10: 215525 | F10: 175252 | G10: 196485 | H10: 214646
B11: Custo Diária (R$): | C11: =C10/22 -> 174.4736185
B12: Custo Horário (R$): | C12: =C10/176 -> 21.80920231
A13: A | B13: Depreciação mensal do equipamento
A14: A1 | B14: Preço de Aquisição | C14: =SMALL(F7:G7,1) -> 200477
A15: A2 | B15: Tempo previsto de vida útil (meses) | C15: 36
A16: A3 | B16: Previsão de recup. Na venda do bem usado | C16: 0.7
A17: A4 | B17: Custo mensal [A1-(A3xA1)]/A2 | C17: =(C14-(C16*C14))/C15 -> 1670.641667
A18: B | B18: Juros pelo Capital empregado
A19: B1 | B19: Taxa mensal de Juros * | C19: =POWER(1+C56,1/12)-1 -> 0.01034852829
A20: B2 | B20: Juros s/depreciação/aluguel (B1xA4) | C20: =C19*C17 -> 17.28868255
A21: C | B21: Conservação e manutenção ** | C21: 0.75
A22: C1 | B22: Taxa de gastos s/a deprec. Inc. seguros (%) | C22: =C21 -> 0.75 | AF22: PREÇO DO DIESEL | AG22: 6.1
A23: C2 | B23: Incidência mensal (C1xA4) | C23: =C22*C17 -> 1252.98125 | AF23: https://precos.petrobras.com.br/sele%C3%A7%C3%A3o-de-estados-diesel
A24: D | B24: Combustível
A25: D1 | B25: Média mensal de quilômetro por veículo | C25: =60*22 -> 1320
A26: D2 | B26: Preço do litro de combustível | C26: =AG22 -> 6.1
A27: D3 | B27: Quilômetros rodados com um litro combustivel | C27: 10
A28: D4 | B28: Combustivel (D1/D3)*D2 | C28: =(C25/C27)*C26 -> 805.2
A29: E | B29: Lubrificantes
A30: E1 | B30: Quilometragem do Contrato (D1*12) | C30: =C25*36 -> 47520
A31: E2 | B31: Franquia por troca de óleo (km) | C31: 10000
A32: E3 | B32: Preço do litro de óleo | C32: =K9 -> 30.91
A33: E4 | B33: Quantidade de litros de óleo por troca | C33: 5
A34: E5 | B34: Quantidade de dias do Contrato | C34: =365*3 -> 1095
A35: E6 | B35: Lubrificantes E = (E1*E3*E4*30)/E2*E5 | C35: =(C30*C32*C33*30)/(C31*C34) -> 20.12113973
A36: F | B36: Pneus
A37: F1 | B37: Quilometragem do Contrato | C37: =C30 -> 47520
A38: F2 | B38: Vida do Pneu em quilômetros | C38: 45000
A39: F3 | B39: Quantidade de pneus | C39: 5
A40: F4 | B40: Preço do Pneu | C40: =V9 -> 499.0190625
A41: F5 | B41: Quantidade de dias do contrato | C41: =C34 -> 1095
A42: F6 | B42: Pneus = (F1*F3*F4*30)/(F2*F5) | C42: =(C37*C39*C40*30)/(C38*C41) -> 72.18686712
A43: G | B43: Motorista
A44: G1 | B44: Salário com encargos sociais | C44: 0
A45: H | B45: Custo Mensal
B46: Sem Motorista (A4+B2+C2+D4+E6+F6) | C46: =C17+C20+C23+C28+C35+C42 -> 3838.419606
B47: Com Motorista (A4+B2+C2+D4+E6+F6+G1) | C47: =C17+C20+C23+C28+C35+C42+C44 -> 3838.419606
A48: I | B48: Custo Direto p/ km Rodado
B49: Sem Motorista | C49: =C46/C25 -> 2.907893641
B50: Com Motorista | C50: =C47/C25 -> 2.907893641
A51: J | B51: Preço cobrado sem BDI | C51: =C46*(1+C8) -> 3838.419606
A52: J1 | B52: Sem Motorista | C52: =C51 -> 3838.419606
A53: J2 | B53: Com Motorista | C53: =C47 -> 3838.419606 | I53: https://www.google.com/search?q=lubrificante+5w30+1l&sa=X&sca_esv=c77f5342bf7e367a&tbm=shop&ei=e0uKZ-DcDNKp5OUPkOKj6QY&ved=0ahUKEwighoOy3_yKAxXSFLkGHRDxKG0Q4dUDCAg&uact=5&oq=lubrificante+5w30+1l&gs_lp=Egtwcm9kdWN0cy1jYyIUbHVicmlmaWNhbnRlIDV3MzAgMWxIgQ9Q4AlY8Q1wAHgAkAEAmAFroAGgA6oBAzEuM7gBA8gBAPgBAZgCAqAC0gHCAgUQABiABMICBhAAGAcYHsICBhAAGAgYHsICBhAAGBYYHpgDAIgGAZIHAzEuMaAHxQU&sclient=products-cc | T53: https://www.google.com/search?q=pneu+225%2F65+R17&sa=X&biw=1600&bih=757&tbm=shop&sxsrf=AJOqlzWsb-d4PS1_OUOEhKmRc2RbtSg3RQ%3A1677092596279&ei=9Gb2Y9K5ENTa5OUPvLykGA&ved=0ahUKEwjSg9Pj6Kn9AhVULbkGHTweCQMQ4dUDCAg&uact=5&oq=pneu+225%2F65+R17&gs_lcp=Cgtwcm9kdWN0cy1jYxADMgsIABCABBCxAxCDATIFCAAQgAQyBwgAEIAEEAoyBwgAEIAEEAoyBwgAEIAEEAoyBwgAEIAEEAoyBwgAEIAEEAoyBQgAEIAEMgcIABCABBAKMgcIABCABBAKOgQIIxAnOgQIABBDSgQIQRgAUABYoTJgqUBoAHAAeACAAdIFiAGUKZIBDTAuMi42LjIuMi4yLjGYAQCgAQHAAQE&sclient=products-cc
B55: OBSERVAÇÕES:
A56: * | B56: Calculado com base na taxa SELIC JANEIRO/2025: | C56: 0.1315
B57: Taxa de Juros Selic — Português (Brasil) (www.gov.br)
A58: ** | B58: Conservação e manutenção - é calculado com o uso de um coeficiente multiplicador "k", conforme tabela abaixo, sobre a
B59: depreciação mensal do equipamento (Item A da planilha de composição de preços). Os valores de K são fornecidos por
B60: fabricantes.
B61: Metodologia conforme a bibliografia "Como Preparar Orçamentos de Obras", 3 edição, Aldo Dórea Mattos, 2019.

Sheet CPU-VEICULO_Leve
A2: Composição de Preços de Locação de Veículos
B3: 2023-08-23 | C3: Data de atualização: | D3: 2025-01-22 | F3: CV | G3: Média | H3: Mediana | L3: CV | M3: Média | N3: Mediana | X3: CV | Y3: Média | Z3: Mediana
A4: CODEVASF | F4: =_xlfn.STDEV.S(F7:I7)/AVERAGE(F7:I7) -> 0.1466333998 | G4: =AVERAGE(F7:I7) -> 75224.5 | H4: =MEDIAN(F7:I7) -> 74407.5 | L4: =_xlfn.STDEV.S(M6:U6)/AVERAGE(M6:U6) -> 0.1572234728 | M4: =AVERAGE(M6:U6) -> 26.76888889 | N4: =MEDIAN(M6:U6) -> 27.12 | X4: =_xlfn.STDEV.S(Y6:AG6)/AVERAGE(Y6:AG6) -> 0.1621894985 | Y4: =AVERAGE(Y6:AG6) -> 329.1444444 | Z4: =MEDIAN(Y6:AG6) -> 334.75
A5: OBS: Preço sem BDI e sem motorista BDI= | F5: Preço FIPE | K5: PRODUTO | L5: MENOR | M5: COT. 1 | N5: COT. 2 | O5: COT. 3 | P5: COT. 4 | Q5: COT. 5 | R5: COT. 6 | S5: COT. 7 | T5: COT. 8 | U5: COT. 9 | W5: PRODUTO | X5: MENOR | Y5: COT. 1 | Z5: COT. 2 | AA5: COT. 3 | AB5: COT. 4 | AC5: COT. 5 | AD5: COT. 6 | AE5: COT. 7 | AF5: COT. 8 | AG5: COT. 9
A6: Veículo Leve 1.0 T. Flex 12V 5p | F6: Renault Kwid Zen 1.0 | G6: Hyndai HB20 Sense 1.0 | H6: ONIX HATCH LT 1.0 12V Flex 5p Mec. | I6: MOBI TREKKING 1.0 Flex 5p. | K6: LUBRIFICANTE 15W40 | L6: =SMALL(M4:N4,1) -> 26.76888889 | M6: 27.12 | N6: 19.01 | O6: 28.9 | P6: 23.9 | Q6: 28.76 | R6: 33.9 | S6: 29.44 | T6: 24.9 | U6: 24.99 | W6: Pneu 185/65 R14 | X6: =SMALL(Y4:Z4,1) -> 329.1444444 | Y6: 289.9 | Z6: =1255.8/4 -> 313.95 | AA6: 289 | AB6: =1339/4 -> 334.75 | AC6: =1519.6/4 -> 379.9 | AD6: 231 | AE6: 364.9 | AF6: =718/2 -> 359 | AG6: =799.8/2 -> 399.9
C7: Custo Mensal (R$): | D7: =D48 -> 1763.031784 | F7: 63868 | G7: 80150 | H7: 88215 | I7: 68665
C8: Custo Diário (R$): | D8: =D7/30 -> 58.76772612
C9: Custo Horário (R$): | D9: =D7/176 -> 10.01722604
A10: A | C10: Depreciação mensal do equipamento
A11: A1 | C11: Preço de Aquisição | D11: =SMALL(G4:H4,1) -> 74407.5
A12: A2 | C12: Tempo previsto de vida útil (meses) | D12: 36
A13: A3 | C13: Previsão de recup. Na venda do bem usado | D13: 0.7
A14: A4 | C14: Custo mensal [A1-(A3xA1)]/A2 | D14: =(D11-(D13*D11))/D12 -> 620.0625
A15: B | C15: Juros pelo Capital empregado
A16: B1 | C16: Taxa mensal de Juros * | D16: =POWER(1+D53,1/12)-1 -> 0.01116342142
A17: B2 | C17: Juros s/depreciação/aluguel (B1xA4) | D17: =D16*D14 -> 6.922018992
A18: C | C18: Conservação e manutenção ** | D18: 0.75
A19: C1 | C19: Taxa de gastos s/a deprec. Inc. seguros (%) | D19: =D18 -> 0.75
A20: C2 | C20: Incidência mensal (C1xA4) | D20: =D19*D14 -> 465.046875
A21: D | C21: Combustível
A22: D1 | C22: Média mensal de quilômetro por veículo | D22: =60*22 -> 1320
A23: D2 | C23: Preço do litro de combustível | D23: =G82 -> 6.51
A24: D3 | C24: Quilômetros rodados com um litro combustivel | D24: =(12.8+13.3+15.3+15)/4 -> 14.1
A25: D4 | C25: Combustivel (D1/D3)*D2 | D25: =(D22/D24)*D23 -> 609.4468085
A26: E | C26: Lubrificantes
A27: E1 | C27: Quilometragem do Contrato (D1*12) | D27: =D22*36 -> 47520
A28: E2 | C28: Franquia por troca de óleo (km) | D28: 10000
A29: E3 | C29: Preço do litro de óleo | D29: =L6 -> 26.76888889
A30: E4 | C30: Quantidade de litros de óleo por troca | D30: 4
A31: E5 | C31: Quantidade de dias do Contrato | D31: =365*3 -> 1095
A32: E6 | C32: Lubrificantes E = (E1*E3*E4*30)/E2*E5 | D32: =(D27*D29*D30*30)/(D28*D31) -> 13.94035726
A33: F | C33: Pneus
A34: F1 | C34: Quilometragem do Contrato | D34: =D27 -> 47520
A35: F2 | C35: Vida do Pneu em quilômetros | D35: 45000
A36: F3 | C36: Quantidade de pneus | D36: 5
A37: F4 | C37: Preço do Pneu | D37: =X6 -> 329.1444444
A38: F5 | C38: Quantidade de dias do contrato | D38: =D31 -> 1095
A39: F6 | C39: Pneus = (F1*F3*F4*30)/(F2*F5) | D39: =(D34*D36*D37*30)/(D35*D38) -> 47.61322374
A40: G | C40: Motorista
A41: G1 | C41: Salário com encargos sociais | D41: 0
A42: H | C42: Custo Mensal | K42: https://www.google.com/search?q=lubrificante+15w40+1l&sa=X&biw=1600&bih=757&tbm=shop&sxsrf=AJOqlzUezMM_9i0M4NKjKqAMycLuOygp_g%3A1677158931166&ei=E2r3Y5e2CcH31sQPsK67CA&ved=0ahUKEwjXi8vy36v9AhXBu5UCHTDXDgEQ4dUDCAg&uact=5&oq=lubrificante+15w40+1l&gs_lcp=Cgtwcm9kdWN0cy1jYxADMgsIABAWEB4Q8QQQGDoICAAQgAQQsAM6CQgAEAcQHhCwAzoJCAAQCBAeELADOgkIABAeELADEBg6DggAEAUQHhDxBBCwAxAYOgUIABCABDoGCAAQFhAeOggIABAWEB4QGEoECEEYAVDeBFi3DWD0D2gBcAB4AIABpQWIAZAIkgEHMy0xLjAuMZgBAKABAcgBCsABAQ&sclient=products-cc
C43: Sem Motorista (A4+B2+C2+D4+E6+F6) | D43: =D14+D17+D20+D25+D32+D39 -> 1763.031784
C44: Com Motorista (A4+B2+C2+D4+E6+F6+G1) | D44: =D14+D17+D20+D25+D32+D39+D41 -> 1763.031784
A45: I | C45: Custo Direto p/ km Rodado
C46: Sem Motorista | D46: =D43/D22 -> 1.335630139 | V46: https://www.google.com/search?q=Pneu+185%2F65+R14&sa=X&hl=pt-BR&biw=1600&bih=757&tbm=shop&sxsrf=AJOqlzVJW-LYM1ZPHImwhsD-4UwyAvTluQ%3A1677158863331&ei=z2n3Y-uxE-zT1sQP0r-OmAs&ved=0ahUKEwir1Z7S36v9AhXsqZUCHdKfA7MQ4dUDCAg&uact=5&oq=Pneu+185%2F65+R14&gs_lcp=Cgtwcm9kdWN0cy1jYxADMgsIABCABBCxAxCDATIFCAAQgAQyBQgAEIAEMgUIABCABDIFCAAQgAQyBQgAEIAEMgUIABCABDIFCAAQgAQyBQgAEIAEMgUIABCABEoECEEYAFD5A1jGCWC1EGgAcAB4AIABrQmIAdcbkgEHNS0yLjAuMpgBAKABAcABAQ&sclient=products-cc
C47: Com Motorista | D47: =D44/D22 -> 1.335630139
A48: J | C48: Preço cobrado sem BDI | D48: =D43*(1+D5) -> 1763.031784
A49: J1 | C49: Sem Motorista | D49: =D48 -> 1763.031784
A50: J2 | C50: Com Motorista | D50: =D44 -> 1763.031784
A53: * | C53: Calculado com base na taxa SELIC JANEIRO/2025: | D53: 0.1425
A55: ** | C55: Conservação e manutenção - é calculado com o uso de um coeficiente multiplicador "k", conforme tabela abaixo, sobre a
C56: depreciação mensal do equipamento (Item A da planilha de composição de preços). Os valores de K são fornecidos por
C57: fabricantes.
C58: Metodologia conforme a bibliografia "Como Preparar Orçamentos de Obras", 3 edição, Aldo Dórea Mattos, 2019.
F82: PREÇO DA GASOLINA | G82: 6.51
F84: https://precos.petrobras.com.br/w/gasolina/df

Sheet CPU HOSPEDAGEM (hidden)
B2: Engenharia Consultiva da Codevasf
B3: CPU - HOSPEDAGEM EQUIPE DE CAMPO (4 PESSOAS/MÊS) | D3: Código/Referencia
B4: ALUGUEL | C4: 3074.56 | D4: F020003334/EMBASA insumo
B5: Aquisição de Mobiliário | C5: =42.41*C16 -> 169.64 | D5: B8954/DNIT
B6: Material de limpeza e diarista | C6: =130.82+(123*8) -> 1114.82 | D6: 10563/ORSE - E200300131/EMBASA
B7: manutenção da casa alugada - Serviços Gerais/Vigia | C7: 2716.19 | D7: 41096/SINAPI
B8: Energia | C8: 180 | D8: 10555/ORSE
B9: Água | C9: 394.99 | D9: 10554/ORSE
B10: telefone/Internet | C10: =154.99+89 -> 243.99 | D10: 10557/10558/ORSE
B11: IPTU (mês) | C11: =(C4*0.5)/12 -> 128.1066667
B13: Custo Mensal: | C13: =SUM(C4:C12) -> 8022.296667
B14: Custo Mensal por pessoa: | C14: =C13/C16 -> 2005.574167
B15: Custo diário por pessoa: | C15: =C14/22 -> 91.16246212
B16: número de pessoas: | C16: 4
B17: Alimentação: | C17: 100.59 | D17: Tabela Diária Codevasf 2024
B19: Diária Total (alimentação + hospedagem): | C19: =C15+C17 -> 191.7524621

Sheet CPU ESCRIT. CONTAINER
B2: Engenharia Consultiva da Codevasf
B3: CPU - HOSPEDAGEM EQUIPE DE CAMPO (4 PESSOAS/MÊS) | D3: Código/Referencia
B4: ALUGUEL CONTAINER ESCRITÓRIO C/ BANHEIRO | C4: =1600 -> 1600 | D4: 4298/ORSE
B5: Aquisição de Mobiliário | C5: ='AUX - MOBILIÁRIO'!F10 -> 149.11 | D5: CODE | E5: cotação
B6: Material de limpeza e diarista | C6: =129.46+(123*4) -> 621.46 | D6: 10563/ORSE - E200300131/EMBASA
B7: Energia | C7: 180 | D7: 10555/ORSE
B8: Mobilização e Desmobilização | C8: =1200*2/8 -> 300 | D8: 89.50.20/89.50.21/SUDECAP-MG
B9: Água | C9: 394.99 | D9: 10554/ORSE
B14: Custo Mensal: | C14: =SUM(C4:C13) -> 3245.56
B15: Custo Mensal por pessoa: | C15: =C14/C17 -> 1081.853333
B16: Custo diário por pessoa: | C16: =C15/22 -> 49.17515152
B17: número de pessoas: | C17: 3

Sheet MDO - DNIT
A1: Código | B1: Categoria | C1: Unid. | D1: Salário | E1: Encargos Sociais | G1: Encargos Complementares | Q1: Encargos Adicionais | W1: Encargos Totais | Y1: Valor Total
G2: Alimentação | I2: EPI | K2: Ferramenta | M2: Transporte | O2: Exame Ocupacional | Q2: Cesta Básica | S2: Assistência Médica | U2: Seguro de Vida
D3: R$ | E3: % | F3: R$ | G3: % | H3: R$ | I3: % | J3: R$ | K3: % | L3: R$ | M3: % | N3: R$ | O3: % | P3: R$ | Q3: % | R3: R$ | S3: % | T3: R$ | U3: % | V3: R$ | W3: % | X3: R$ | Y3: R$
A4: Profissionais mensalistas
A5: P8001 | B5: Advogado júnior | C5: mês | D5: 4915.72 | E5: 0.793 | F5: 3898.16 | G5: 0.1499 | H5: 736.74 | I5: 0.0055 | J5: 26.96 | K5: 0 | L5: 0 | M5: 0 | N5: 0 | O5: 0.0006 | P5: 2.86 | Q5: 0 | R5: 0 | S5: 0.063 | T5: 309.62 | U5: 0.002 | V5: 9.98 | W5: 1.014 | X5: 4984.34 | Y5: 9900.05 | Z5: =Y5-F5-D5 -> 1086.17
A6: P8002 | B6: Advogado pleno | C6: mês | D6: 6554.29 | E6: 0.793 | F6: 5197.55 | G6: 0.1124 | H6: 736.74 | I6: 0.0041 | J6: 26.96 | K6: 0 | L6: 0 | M6: 0 | N6: 0 | O6: 0.0004 | P6: 2.86 | Q6: 0 | R6: 0 | S6: 0.0472 | T6: 309.62 | U6: 0.0015 | V6: 9.98 | W6: 0.9587 | X6: 6283.72 | Y6: 12838.01 | Z6: =Y6-F6-D6 -> 1086.17
A7: P8003 | B7: Advogado sênior | C7: mês | D7: 12196.82 | E7: 0.793 | F7: 9672.08 | G7: 0.0604 | H7: 736.74 | I7: 0.0022 | J7: 26.96 | K7: 0 | L7: 0 | M7: 0 | N7: 0 | O7: 0.0002 | P7: 2.86 | Q7: 0 | R7: 0 | S7: 0.0254 | T7: 309.62 | U7: 0.0008 | V7: 9.98 | W7: 0.8821 | X7: 10758.25 | Y7: 22955.07 | Z7: 1086.17
A8: P8007 | B8: Analista de desenvolvimento de sistemas júnior | C8: mês | D8: 4417.81 | E8: 0.7959 | F8: 3516.13 | G8: 0.1668 | H8: 736.74 | I8: 0 | J8: 0 | K8: 0 | L8: 0 | M8: 0 | N8: 0 | O8: 0.0008 | P8: 3.5 | Q8: 0 | R8: 0 | S8: 0.0701 | T8: 309.62 | U8: 0.0023 | V8: 9.98 | W8: 1.0358 | X8: 4575.97 | Y8: 8993.78 | Z8: 1059.84
A9: P8008 | B9: Analista de desenvolvimento de sistemas pleno | C9: mês | D9: 5699.98 | E9: 0.7959 | F9: 4536.61 | G9: 0.1293 | H9: 736.74 | I9: 0 | J9: 0 | K9: 0 | L9: 0 | M9: 0 | N9: 0 | O9: 0.0006 | P9: 3.5 | Q9: 0 | R9: 0 | S9: 0.0543 | T9: 309.62 | U9: 0.0018 | V9: 9.98 | W9: 0.9818 | X9: 5596.45 | Y9: 11296.43 | Z9: 1059.84
A10: P8009 | B10: Analista de desenvolvimento de sistemas sênior | C10: mês | D10: 10119.99 | E10: 0.7959 | F10: 8054.5 | G10: 0.0728 | H10: 736.74 | I10: 0 | J10: 0 | K10: 0 | L10: 0 | M10: 0 | N10: 0 | O10: 0.0003 | P10: 3.5 | Q10: 0 | R10: 0 | S10: 0.0306 | T10: 309.62 | U10: 0.001 | V10: 9.98 | W10: 0.9006 | X10: 9114.34 | Y10: 19234.34 | Z10: 1059.85
A11: P8013 | B11: Arquiteto júnior | C11: mês | D11: 12903 | E11: 0.793 | F11: 10232.08 | G11: 0.0571 | H11: 736.74 | I11: 0.0021 | J11: 26.96 | K11: 0 | L11: 0 | M11: 0 | N11: 0 | O11: 0.0002 | P11: 2.73 | Q11: 0 | R11: 0 | S11: 0.024 | T11: 309.62 | U11: 0.0008 | V11: 9.98 | W11: 0.8772 | X11: 11318.12 | Y11: 24221.12 | Z11: 1086.04
A12: P8014 | B12: Arquiteto pleno | C12: mês | D12: 13128.58 | E12: 0.793 | F12: 10410.97 | G12: 0.0561 | H12: 736.74 | I12: 0.0021 | J12: 26.96 | K12: 0 | L12: 0 | M12: 0 | N12: 0 | O12: 0.0002 | P12: 2.73 | Q12: 0 | R12: 0 | S12: 0.0236 | T12: 309.62 | U12: 0.0008 | V12: 9.98 | W12: 0.8757 | X12: 11497.01 | Y12: 24625.59 | Z12: 1086.04
A13: P8015 | B13: Arquiteto sênior | C13: mês | D13: 15998.46 | E13: 0.793 | F13: 12686.78 | G13: 0.0461 | H13: 736.74 | I13: 0.0017 | J13: 26.96 | K13: 0 | L13: 0 | M13: 0 | N13: 0 | O13: 0.0002 | P13: 2.73 | Q13: 0 | R13: 0 | S13: 0.0194 | T13: 309.62 | U13: 0.0006 | V13: 9.98 | W13: 0.8609 | X13: 13772.82 | Y13: 29771.29 | Z13: 1086.05
A14: P8019 | B14: Assistente social júnior | C14: mês | D14: 3294.18 | E14: 0.8005 | F14: 2636.99 | G14: 0.2237 | H14: 736.74 | I14: 0.0082 | J14: 26.96 | K14: 0 | L14: 0 | M14: 0.0156 | N14: 51.25 | O14: 0.0012 | P14: 4.11 | Q14: 0 | R14: 0 | S14: 0.094 | T14: 309.62 | U14: 0.003 | V14: 9.98 | W14: 1.1462 | X14: 3775.66 | Y14: 7069.84 | Z14: 1138.67
A15: P8020 | B15: Assistente social pleno | C15: mês | D15: 4392.24 | E15: 0.8005 | F15: 3515.99 | G15: 0.1677 | H15: 736.74 | I15: 0.0061 | J15: 26.96 | K15: 0 | L15: 0 | M15: 0 | N15: 0 | O15: 0.0009 | P15: 4.11 | Q15: 0 | R15: 0 | S15: 0.0705 | T15: 309.62 | U15: 0.0023 | V15: 9.98 | W15: 1.0481 | X15: 4603.41 | Y15: 8995.65 | Z15: 1087.42
A16: P8021 | B16: Assistente social sênior | C16: mês | D16: 7474.93 | E16: 0.8005 | F16: 5983.68 | G16: 0.0986 | H16: 736.74 | I16: 0.0036 | J16: 26.96 | K16: 0 | L16: 0 | M16: 0 | N16: 0 | O16: 0.0006 | P16: 4.11 | Q16: 0 | R16: 0 | S16: 0.0414 | T16: 309.62 | U16: 0.0013 | V16: 9.98 | W16: 0.946 | X16: 7071.1 | Y16: 14546.04 | Z16: 1087.43
A17: P8025 | B17: Auxiliar | C17: mês | D17: 1639.47 | E17: 0.8172 | F17: 1339.78 | G17: 0.4494 | H17: 736.74 | I17: 0.02 | J17: 32.83 | K17: 0.001 | L17: 1.68 | M17: 0.0918 | N17: 150.53 | O17: 0.0038 | P17: 6.15 | Q17: 0 | R17: 0 | S17: 0.1889 | T17: 309.62 | U17: 0.0061 | V17: 9.98 | W17: 1.5781 | X17: 2587.32 | Y17: 4226.79 | Z17: 1247.54
A18: P8026 | B18: Auxiliar administrativo | C18: mês | D18: 1914.95 | E18: 0.802 | F18: 1535.79 | G18: 0.3847 | H18: 736.74 | I18: 0 | J18: 0 | K18: 0 | L18: 0 | M18: 0.07 | N18: 134 | O18: 0.002 | P18: 3.75 | Q18: 0 | R18: 0 | S18: 0.1617 | T18: 309.62 | U18: 0.0052 | V18: 9.98 | W18: 1.4256 | X18: 2729.89 | Y18: 4644.83 | Z18: 1194.09
A19: P8027 | B19: Auxiliar de laboratório | C19: mês | D19: 1810.44 | E19: 0.8037 | F19: 1455.05 | G19: 0.4069 | H19: 736.74 | I19: 0.0181 | J19: 32.83 | K19: 0.0019 | L19: 3.47 | M19: 0.0775 | N19: 140.27 | O19: 0.0023 | P19: 4.09 | Q19: 0 | R19: 0 | S19: 0.171 | T19: 309.62 | U19: 0.0055 | V19: 9.98 | W19: 1.487 | X19: 2692.05 | Y19: 4502.48 | Z19: 1236.99
A20: P8028 | B20: Auxiliar de topografia | C20: mês | D20: 1639.47 | E20: 0.8059 | F20: 1321.25 | G20: 0.4494 | H20: 736.74 | I20: 0.02 | J20: 32.83 | K20: 0.0009 | L20: 1.46 | M20: 0.0918 | N20: 150.53 | O20: 0.0027 | P20: 4.42 | Q20: 0 | R20: 0 | S20: 0.1889 | T20: 309.62 | U20: 0.0061 | V20: 9.98 | W20: 1.5657 | X20: 2566.84 | Y20: 4206.32 | Z20: 1245.6
A21: P8032 | B21: Biólogo júnior | C21: mês | D21: 3221.45 | E21: 0.7969 | F21: 2567.17 | G21: 0.2287 | H21: 736.74 | I21: 0.0084 | J21: 26.96 | K21: 0 | L21: 0 | M21: 0.0173 | N21: 55.61 | O21: 0.0011 | P21: 3.69 | Q21: 0 | R21: 0 | S21: 0.0961 | T21: 309.62 | U21: 0.0031 | V21: 9.98 | W21: 1.1516 | X21: 3709.78 | Y21: 6931.23 | Z21: 1142.61
A22: P8033 | B22: Biólogo pleno | C22: mês | D22: 4295.27 | E22: 0.7969 | F22: 3422.9 | G22: 0.1715 | H22: 736.74 | I22: 0.0063 | J22: 26.96 | K22: 0 | L22: 0 | M22: 0 | N22: 0 | O22: 0.0009 | P22: 3.69 | Q22: 0 | R22: 0 | S22: 0.0721 | T22: 309.62 | U22: 0.0023 | V22: 9.98 | W22: 1.05 | X22: 4509.89 | Y22: 8805.16 | Z22: 1086.99
A23: P8034 | B23: Biólogo sênior | C23: mês | D23: 7705.82 | E23: 0.7969 | F23: 6140.77 | G23: 0.0956 | H23: 736.74 | I23: 0.0035 | J23: 26.96 | K23: 0 | L23: 0 | M23: 0 | N23: 0 | O23: 0.0005 | P23: 3.69 | Q23: 0 | R23: 0 | S23: 0.0402 | T23: 309.62 | U23: 0.0013 | V23: 9.98 | W23: 0.938 | X23: 7227.76 | Y23: 14933.58 | Z23: 1086.99
A24: P8038 | B24: Chefe de escritório | C24: mês | D24: 3631.5 | E24: 0.7941 | F24: 2883.77 | G24: 0.2029 | H24: 736.74 | I24: 0 | J24: 0 | K24: 0 | L24: 0 | M24: 0.0085 | N24: 31.01 | O24: 0.0008 | P24: 2.98 | Q24: 0 | R24: 0 | S24: 0.0853 | T24: 309.62 | U24: 0.0027 | V24: 9.98 | W24: 1.0943 | X24: 3974.11 | Y24: 7605.6 | Z24: 1090.33
A25: P8040 | B25: Contador júnior | C25: mês | D25: 4212.83 | E25: 0.7944 | F25: 3346.67 | G25: 0.1749 | H25: 736.74 | I25: 0 | J25: 0 | K25: 0 | L25: 0 | M25: 0 | N25: 0 | O25: 0.0007 | P25: 2.79 | Q25: 0 | R25: 0 | S25: 0.0735 | T25: 309.62 | U25: 0.0024 | V25: 9.98 | W25: 1.0458 | X25: 4405.8 | Y25: 8618.63 | Z25: 1059.13
A26: P8041 | B26: Contador pleno | C26: mês | D26: 5617.1 | E26: 0.7944 | F26: 4462.23 | G26: 0.1312 | H26: 736.74 | I26: 0 | J26: 0 | K26: 0 | L26: 0 | M26: 0 | N26: 0 | O26: 0.0005 | P26: 2.79 | Q26: 0 | R26: 0 | S26: 0.0551 | T26: 309.62 | U26: 0.0018 | V26: 9.98 | W26: 0.983 | X26: 5521.36 | Y26: 11138.46 | Z26: 1059.13
A27: P8042 | B27: Contador sênior | C27: mês | D27: 10692.34 | E27: 0.7944 | F27: 8494 | G27: 0.0689 | H27: 736.74 | I27: 0 | J27: 0 | K27: 0 | L27: 0 | M27: 0 | N27: 0 | O27: 0.0003 | P27: 2.79 | Q27: 0 | R27: 0 | S27: 0.029 | T27: 309.62 | U27: 0.0009 | V27: 9.98 | W27: 0.8935 | X27: 9553.12 | Y27: 20245.46 | Z27: 1059.12
A28: P8044 | B28: Coordenador ambiental | C28: mês | D28: 18439.32 | E28: 0.7982 | F28: 14718.27 | G28: 0.04 | H28: 736.74 | I28: 0.0013 | J28: 24.63 | K28: 0 | L28: 0 | M28: 0 | N28: 0 | O28: 0.0002 | P28: 4.07 | Q28: 0 | R28: 0 | S28: 0.0168 | T28: 309.62 | U28: 0.0005 | V28: 9.98 | W28: 0.857 | X28: 15803.31 | Y28: 34242.63 | Z28: 1085.04
A29: P8045 | B29: Economista júnior | C29: mês | D29: 4867.04 | E29: 0.786 | F29: 3825.49 | G29: 0.1514 | H29: 736.74 | I29: 0 | J29: 0 | K29: 0 | L29: 0 | M29: 0 | N29: 0 | O29: 0.0004 | P29: 1.87 | Q29: 0 | R29: 0 | S29: 0.0636 | T29: 309.62 | U29: 0.0021 | V29: 9.98 | W29: 1.0034 | X29: 4883.71 | Y29: 9750.74 | Z29: 1058.21
A30: P8046 | B30: Economista pleno | C30: mês | D30: 6489.38 | E30: 0.786 | F30: 5100.65 | G30: 0.1135 | H30: 736.74 | I30: 0 | J30: 0 | K30: 0 | L30: 0 | M30: 0 | N30: 0 | O30: 0.0003 | P30: 1.87 | Q30: 0 | R30: 0 | S30: 0.0477 | T30: 309.62 | U30: 0.0015 | V30: 9.98 | W30: 0.9491 | X30: 6158.87 | Y30: 12648.25 | Z30: 1058.22
A31: P8047 | B31: Economista sênior | C31: mês | D31: 9957.27 | E31: 0.786 | F31: 7826.41 | G31: 0.074 | H31: 736.74 | I31: 0 | J31: 0 | K31: 0 | L31: 0 | M31: 0 | N31: 0 | O31: 0.0002 | P31: 1.87 | Q31: 0 | R31: 0 | S31: 0.0311 | T31: 309.62 | U31: 0.001 | V31: 9.98 | W31: 0.8923 | X31: 8884.63 | Y31: 18841.9 | Z31: 1058.22
A32: P8054 | B32: Engenheiro agrônomo júnior | C32: mês | D32: 12903 | E32: 0.7925 | F32: 10225.63 | G32: 0.0571 | H32: 736.74 | I32: 0.0021 | J32: 26.96 | K32: 0 | L32: 0 | M32: 0 | N32: 0 | O32: 0.0002 | P32: 3.08 | Q32: 0 | R32: 0 | S32: 0.024 | T32: 309.62 | U32: 0.0008 | V32: 9.98 | W32: 0.8767 | X32: 11312.01 | Y32: 24215.01 | Z32: 1086.38
A33: P8055 | B33: Engenheiro agrônomo pleno | C33: mês | D33: 13536 | E33: 0.7925 | F33: 10727.28 | G33: 0.0544 | H33: 736.74 | I33: 0.002 | J33: 26.96 | K33: 0 | L33: 0 | M33: 0 | N33: 0 | O33: 0.0002 | P33: 3.08 | Q33: 0 | R33: 0 | S33: 0.0229 | T33: 309.62 | U33: 0.0007 | V33: 9.98 | W33: 0.8728 | X33: 11813.67 | Y33: 25349.67 | Z33: 1086.39
A34: P8056 | B34: Engenheiro agrônomo sênior | C34: mês | D34: 14169 | E34: 0.7925 | F34: 11228.93 | G34: 0.052 | H34: 736.74 | I34: 0.0019 | J34: 26.96 | K34: 0 | L34: 0 | M34: 0 | N34: 0 | O34: 0.0002 | P34: 3.08 | Q34: 0 | R34: 0 | S34: 0.0219 | T34: 309.62 | U34: 0.0007 | V34: 9.98 | W34: 0.8692 | X34: 12315.32 | Y34: 26484.32 | Z34: 1086.39
A35: P8057 | B35: Engenheiro ambiental júnior | C35: mês | D35: 12903 | E35: 0.8016 | F35: 10343.04 | G35: 0.0571 | H35: 736.74 | I35: 0.0021 | J35: 26.96 | K35: 0 | L35: 0 | M35: 0 | N35: 0 | O35: 0.0004 | P35: 4.7 | Q35: 0 | R35: 0 | S35: 0.024 | T35: 309.62 | U35: 0.0008 | V35: 9.98 | W35: 0.8859 | X35: 11431.05 | Y35: 24334.05 | Z35: 1088.01
A36: P8058 | B36: Engenheiro ambiental pleno | C36: mês | D36: 14000.63 | E36: 0.8016 | F36: 11222.91 | G36: 0.0526 | H36: 736.74 | I36: 0.0019 | J36: 26.96 | K36: 0 | L36: 0 | M36: 0 | N36: 0 | O36: 0.0003 | P36: 4.7 | Q36: 0 | R36: 0 | S36: 0.0221 | T36: 309.62 | U36: 0.0007 | V36: 9.98 | W36: 0.8793 | X36: 12310.92 | Y36: 26311.55 | Z36: 1088.01
A37: P8059 | B37: Engenheiro ambiental sênior | C37: mês | D37: 15098.27 | E37: 0.8016 | F37: 12102.77 | G37: 0.0488 | H37: 736.74 | I37: 0.0018 | J37: 26.96 | K37: 0 | L37: 0 | M37: 0 | N37: 0 | O37: 0.0003 | P37: 4.7 | Q37: 0 | R37: 0 | S37: 0.0205 | T37: 309.62 | U37: 0.0007 | V37: 9.98 | W37: 0.8737 | X37: 13190.78 | Y37: 28289.05 | Z37: 1088.01
A38: P8060 | B38: Engenheiro consultor especial | C38: mês | D38: 22395.59 | E38: 0.7973 | F38: 17856 | G38: 0.0329 | H38: 736.74 | I38: 0.0011 | J38: 24.63 | K38: 0 | L38: 0 | M38: 0 | N38: 0 | O38: 0.0002 | P38: 3.91 | Q38: 0 | R38: 0 | S38: 0.0138 | T38: 309.62 | U38: 0.0004 | V38: 9.98 | W38: 0.8457 | X38: 18940.89 | Y38: 41336.48 | Z38: 1084.89
A39: P8061 | B39: Engenheiro coordenador | C39: mês | D39: 18662.99 | E39: 0.7973 | F39: 14880 | G39: 0.0395 | H39: 736.74 | I39: 0.0013 | J39: 24.63 | K39: 0 | L39: 0 | M39: 0 | N39: 0 | O39: 0.0002 | P39: 3.91 | Q39: 0 | R39: 0 | S39: 0.0166 | T39: 309.62 | U39: 0.0005 | V39: 9.98 | W39: 0.8554 | X39: 15964.89 | Y39: 34627.88 | Z39: 1084.89
A40: P8062 | B40: Engenheiro de pesca júnior | C40: mês | D40: 12903 | E40: 0.8013 | F40: 10339.17 | G40: 0.0571 | H40: 736.74 | I40: 0.0021 | J40: 26.96 | K40: 0 | L40: 0 | M40: 0 | N40: 0 | O40: 0.0003 | P40: 3.61 | Q40: 0 | R40: 0 | S40: 0.024 | T40: 309.62 | U40: 0.0008 | V40: 9.98 | W40: 0.8855 | X40: 11426.09 | Y40: 24329.09 | Z40: 1086.92
A41: P8063 | B41: Engenheiro de pesca pleno | C41: mês | D41: 14139.75 | E41: 0.8013 | F41: 11330.18 | G41: 0.0521 | H41: 736.74 | I41: 0.0019 | J41: 26.96 | K41: 0 | L41: 0 | M41: 0 | N41: 0 | O41: 0.0003 | P41: 3.61 | Q41: 0 | R41: 0 | S41: 0.0219 | T41: 309.62 | U41: 0.0007 | V41: 9.98 | W41: 0.8782 | X41: 12417.1 | Y41: 26556.85 | Z41: 1086.92
A42: P8064 | B42: Engenheiro de pesca sênior | C42: mês | D42: 15376.5 | E42: 0.8013 | F42: 12321.19 | G42: 0.0479 | H42: 736.74 | I42: 0.0018 | J42: 26.96 | K42: 0 | L42: 0 | M42: 0 | N42: 0 | O42: 0.0002 | P42: 3.61 | Q42: 0 | R42: 0 | S42: 0.0201 | T42: 309.62 | U42: 0.0006 | V42: 9.98 | W42: 0.872 | X42: 13408.11 | Y42: 28784.61 | Z42: 1086.92
A43: P8065 | B43: Engenheiro de projetos júnior | C43: mês | D43: 12903 | E43: 0.7973 | F43: 10287.56 | G43: 0.0571 | H43: 736.74 | I43: 0.0021 | J43: 26.96 | K43: 0 | L43: 0 | M43: 0 | N43: 0 | O43: 0.0003 | P43: 3.91 | Q43: 0 | R43: 0 | S43: 0.024 | T43: 309.62 | U43: 0.0008 | V43: 9.98 | W43: 0.8816 | X43: 11374.78 | Y43: 24277.78 | Z43: =Y43-F43-D43 -> 1087.22
A44: P8066 | B44: Engenheiro de projetos pleno | C44: mês | D44: 13163.74 | E44: 0.7973 | F44: 10495.45 | G44: 0.056 | H44: 736.74 | I44: 0.002 | J44: 26.96 | K44: 0 | L44: 0 | M44: 0 | N44: 0 | O44: 0.0003 | P44: 3.91 | Q44: 0 | R44: 0 | S44: 0.0235 | T44: 309.62 | U44: 0.0008 | V44: 9.98 | W44: 0.8799 | X44: 11582.67 | Y44: 24746.41 | Z44: =Y44-F44-D44 -> 1087.22
A45: P8067 | B45: Engenheiro de projetos sênior | C45: mês | D45: 16396.56 | E45: 0.7973 | F45: 13072.98 | G45: 0.0449 | H45: 736.74 | I45: 0.0016 | J45: 26.96 | K45: 0 | L45: 0 | M45: 0 | N45: 0 | O45: 0.0002 | P45: 3.91 | Q45: 0 | R45: 0 | S45: 0.0189 | T45: 309.62 | U45: 0.0006 | V45: 9.98 | W45: 0.8636 | X45: 14160.2 | Y45: 30556.77 | Z45: =Y45-F45-D45 -> 1087.23
A46: P8068 | B46: Engenheiro florestal júnior | C46: mês | D46: 12903 | E46: 0.8013 | F46: 10339.17 | G46: 0.0571 | H46: 736.74 | I46: 0.0021 | J46: 26.96 | K46: 0 | L46: 0 | M46: 0 | N46: 0 | O46: 0.0003 | P46: 3.61 | Q46: 0 | R46: 0 | S46: 0.024 | T46: 309.62 | U46: 0.0008 | V46: 9.98 | W46: 0.8855 | X46: 11426.09 | Y46: 24329.09 | Z46: 1086.92
A47: P8069 | B47: Engenheiro florestal pleno | C47: mês | D47: 14139.75 | E47: 0.8013 | F47: 11330.18 | G47: 0.0521 | H47: 736.74 | I47: 0.0019 | J47: 26.96 | K47: 0 | L47: 0 | M47: 0 | N47: 0 | O47: 0.0003 | P47: 3.61 | Q47: 0 | R47: 0 | S47: 0.0219 | T47: 309.62 | U47: 0.0007 | V47: 9.98 | W47: 0.8782 | X47: 12417.1 | Y47: 26556.85 | Z47: 1086.92
A48: P8070 | B48: Engenheiro florestal sênior | C48: mês | D48: 15376.5 | E48: 0.8013 | F48: 12321.19 | G48: 0.0479 | H48: 736.74 | I48: 0.0018 | J48: 26.96 | K48: 0 | L48: 0 | M48: 0 | N48: 0 | O48: 0.0002 | P48: 3.61 | Q48: 0 | R48: 0 | S48: 0.0201 | T48: 309.62 | U48: 0.0006 | V48: 9.98 | W48: 0.872 | X48: 13408.11 | Y48: 28784.61 | Z48: 1086.92
A49: P8080 | B49: Geólogo júnior | C49: mês | D49: 12903 | E49: 0.8009 | F49: 10334.01 | G49: 0.055 | H49: 709.66 | I49: 0.0021 | J49: 26.96 | K49: 0 | L49: 0 | M49: 0 | N49: 0 | O49: 0.0003 | P49: 3.55 | Q49: 0 | R49: 0 | S49: 0.024 | T49: 309.62 | U49: 0.0008 | V49: 9.98 | W49: 0.883 | X49: 11393.79 | Y49: 24296.79 | Z49: 1059.78
A50: P8081 | B50: Geólogo pleno | C50: mês | D50: 13467.8 | E50: 0.8009 | F50: 10786.36 | G50: 0.0527 | H50: 709.66 | I50: 0.002 | J50: 26.96 | K50: 0 | L50: 0 | M50: 0 | N50: 0 | O50: 0.0003 | P50: 3.55 | Q50: 0 | R50: 0 | S50: 0.023 | T50: 309.62 | U50: 0.0007 | V50: 9.98 | W50: 0.8796 | X50: 11846.14 | Y50: 25313.93 | Z50: 1059.77
A51: P8082 | B51: Geólogo sênior | C51: mês | D51: 14032.59 | E51: 0.8009 | F51: 11238.7 | G51: 0.0506 | H51: 709.66 | I51: 0.0019 | J51: 26.96 | K51: 0 | L51: 0 | M51: 0 | N51: 0 | O51: 0.0003 | P51: 3.55 | Q51: 0 | R51: 0 | S51: 0.0221 | T51: 309.62 | U51: 0.0007 | V51: 9.98 | W51: 0.8764 | X51: 12298.48 | Y51: 26331.08 | Z51: 1059.79
A52: P8092 | B52: Jornalista júnior | C52: mês | D52: 3219.33 | E52: 0.7956 | F52: 2561.3 | G52: 0.2288 | H52: 736.74 | I52: 0.0084 | J52: 26.96 | K52: 0 | L52: 0 | M52: 0.0173 | N52: 55.74 | O52: 0.0008 | P52: 2.66 | Q52: 0 | R52: 0 | S52: 0.0962 | T52: 309.62 | U52: 0.0031 | V52: 9.98 | W52: 1.1502 | X52: 3703.01 | Y52: 6922.35 | Z52: 1141.72
A53: P8093 | B53: Jornalista pleno | C53: mês | D53: 4292.44 | E53: 0.7956 | F53: 3415.07 | G53: 0.1716 | H53: 736.74 | I53: 0.0063 | J53: 26.96 | K53: 0 | L53: 0 | M53: 0 | N53: 0 | O53: 0.0006 | P53: 2.66 | Q53: 0 | R53: 0 | S53: 0.0721 | T53: 309.62 | U53: 0.0023 | V53: 9.98 | W53: 1.0486 | X53: 4501.04 | Y53: 8793.48 | Z53: 1085.97
A54: P8094 | B54: Jornalista sênior | C54: mês | D54: 8187.79 | E54: 0.7956 | F54: 6514.21 | G54: 0.09 | H54: 736.74 | I54: 0.0033 | J54: 26.96 | K54: 0 | L54: 0 | M54: 0 | N54: 0 | O54: 0.0003 | P54: 2.66 | Q54: 0 | R54: 0 | S54: 0.0378 | T54: 309.62 | U54: 0.0012 | V54: 9.98 | W54: 0.9282 | X54: 7600.18 | Y54: 15787.98 | Z54: 1085.98
A55: P8098 | B55: Laboratorista | C55: mês | D55: 2413.91 | E55: 0.8037 | F55: 1940.06 | G55: 0.3052 | H55: 736.74 | I55: 0.0125 | J55: 30.23 | K55: 0 | L55: 0 | M55: 0.0431 | N55: 104.07 | O55: 0.0017 | P55: 4.09 | Q55: 0 | R55: 0 | S55: 0.1283 | T55: 309.62 | U55: 0.0041 | V55: 9.98 | W55: 1.2986 | X55: 3134.79 | Y55: 5548.7 | Z55: 1194.73
A56: P8102 | B56: Médico veterinário | C56: mês | D56: 12903 | E56: 0.7901 | F56: 10194.66 | G56: 0.0571 | H56: 736.74 | I56: 0.0021 | J56: 26.96 | K56: 0 | L56: 0 | M56: 0 | N56: 0 | O56: 0.0002 | P56: 2.62 | Q56: 0 | R56: 0 | S56: 0.024 | T56: 309.62 | U56: 0.0008 | V56: 9.98 | W56: 0.8743 | X56: 11280.59 | Y56: 24183.59 | Z56: 1085.93
A57: P8106 | B57: Meteorologista júnior | C57: mês | D57: 5313.76 | E57: 0.7976 | F57: 4238.26 | G57: 0.1386 | H57: 736.74 | I57: 0.0051 | J57: 26.96 | K57: 0 | L57: 0 | M57: 0 | N57: 0 | O57: 0.0008 | P57: 4.16 | Q57: 0 | R57: 0 | S57: 0.0583 | T57: 309.62 | U57: 0.0019 | V57: 9.98 | W57: 1.0023 | X57: 5325.72 | Y57: 10639.48 | Z57: 1087.46
A58: P8107 | B58: Meteorologista pleno | C58: mês | D58: 7085.02 | E58: 0.7976 | F58: 5651.01 | G58: 0.104 | H58: 736.74 | I58: 0.0038 | J58: 26.96 | K58: 0 | L58: 0 | M58: 0 | N58: 0 | O58: 0.0006 | P58: 4.16 | Q58: 0 | R58: 0 | S58: 0.0437 | T58: 309.62 | U58: 0.0014 | V58: 9.98 | W58: 0.9511 | X58: 6738.47 | Y58: 13823.49 | Z58: 1087.46
A59: P8108 | B59: Meteorologista sênior | C59: mês | D59: 11703 | E59: 0.7976 | F59: 9334.31 | G59: 0.063 | H59: 736.74 | I59: 0.0023 | J59: 26.96 | K59: 0 | L59: 0 | M59: 0 | N59: 0 | O59: 0.0004 | P59: 4.16 | Q59: 0 | R59: 0 | S59: 0.0265 | T59: 309.62 | U59: 0.0009 | V59: 9.98 | W59: 0.8905 | X59: 10421.78 | Y59: 22124.77 | Z59: 1087.46
A60: P8112 | B60: Motorista de caminhão | C60: mês | D60: 2427.21 | E60: 0.8056 | F60: 1955.36 | G60: 0.3035 | H60: 736.74 | I60: 0.0135 | J60: 32.83 | K60: 0 | L60: 0 | M60: 0.0425 | N60: 103.27 | O60: 0.0018 | P60: 4.27 | Q60: 0 | R60: 0 | S60: 0.1276 | T60: 309.62 | U60: 0.0041 | V60: 9.98 | W60: 1.2986 | X60: 3152.07 | Y60: 5579.28 | Z60: 1196.71
A61: P8113 | B61: Motorista de veículo leve | C61: mês | D61: 2131.79 | E61: 0.8012 | F61: 1707.99 | G61: 0.3456 | H61: 736.74 | I61: 0.0154 | J61: 32.83 | K61: 0 | L61: 0 | M61: 0.0568 | N61: 120.99 | O61: 0.0018 | P61: 3.85 | Q61: 0 | R61: 0 | S61: 0.1452 | T61: 309.62 | U61: 0.0047 | V61: 9.98 | W61: 1.3707 | X61: 2922 | Y61: 5053.79 | Z61: 1214.01
A62: P8117 | B62: Oceanógrafo júnior | C62: mês | D62: 4704.63 | E62: 0.8013 | F62: 3769.82 | G62: 0.1566 | H62: 736.74 | I62: 0.0057 | J62: 26.96 | K62: 0 | L62: 0 | M62: 0 | N62: 0 | O62: 0.0007 | P62: 3.5 | Q62: 0 | R62: 0 | S62: 0.0658 | T62: 309.62 | U62: 0.0021 | V62: 9.98 | W62: 1.0323 | X62: 4856.63 | Y62: 9561.26 | Z62: 1086.81
A63: P8118 | B63: Oceanógrafo pleno | C63: mês | D63: 6272.84 | E63: 0.8013 | F63: 5026.42 | G63: 0.1174 | H63: 736.74 | I63: 0.0043 | J63: 26.96 | K63: 0 | L63: 0 | M63: 0 | N63: 0 | O63: 0.0006 | P63: 3.5 | Q63: 0 | R63: 0 | S63: 0.0494 | T63: 309.62 | U63: 0.0016 | V63: 9.98 | W63: 0.9746 | X63: 6113.24 | Y63: 12386.07 | Z63: 1086.81
A64: P8119 | B64: Oceanógrafo sênior | C64: mês | D64: 12021.16 | E64: 0.8013 | F64: 9632.56 | G64: 0.0613 | H64: 736.74 | I64: 0.0022 | J64: 26.96 | K64: 0 | L64: 0 | M64: 0 | N64: 0 | O64: 0.0003 | P64: 3.5 | Q64: 0 | R64: 0 | S64: 0.0258 | T64: 309.62 | U64: 0.0008 | V64: 9.98 | W64: 0.8917 | X64: 10719.37 | Y64: 22740.53 | Z64: 1086.81
A65: P8129 | B65: Pedagogo júnior | C65: mês | D65: 2582.15 | E65: 1.0651 | F65: 2750.25 | G65: 0.2853 | H65: 736.74 | I65: 0.0104 | J65: 26.96 | K65: 0 | L65: 0 | M65: 0.0364 | N65: 93.97 | O65: 0.0101 | P65: 26 | Q65: 0 | R65: 0 | S65: 0.1199 | T65: 309.62 | U65: 0.0039 | V65: 9.98 | W65: 1.5311 | X65: 3953.53 | Y65: 6535.68 | Z65: 1203.28
A66: P8130 | B66: Pedagogo pleno | C66: mês | D66: 3442.87 | E66: 1.0651 | F66: 3667 | G66: 0.214 | H66: 736.74 | I66: 0.0078 | J66: 26.96 | K66: 0 | L66: 0 | M66: 0.0123 | N66: 42.33 | O66: 0.0076 | P66: 26 | Q66: 0 | R66: 0 | S66: 0.0899 | T66: 309.62 | U66: 0.0029 | V66: 9.98 | W66: 1.3996 | X66: 4818.64 | Y66: 8261.51 | Z66: 1151.64
A67: P8131 | B67: Pedagogo sênior | C67: mês | D67: 4644.65 | E67: 1.0651 | F67: 4947.01 | G67: 0.1586 | H67: 736.74 | I67: 0.0058 | J67: 26.96 | K67: 0 | L67: 0 | M67: 0 | N67: 0 | O67: 0.0056 | P67: 26 | Q67: 0 | R67: 0 | S67: 0.0667 | T67: 309.62 | U67: 0.0021 | V67: 9.98 | W67: 1.3039 | X67: 6056.32 | Y67: 10700.97 | Z67: 1109.31
A68: P8135 | B68: Secretária | C68: mês | D68: 2837.59 | E68: 0.8025 | F68: 2277.17 | G68: 0.2596 | H68: 736.74 | I68: 0 | J68: 0 | K68: 0 | L68: 0 | M68: 0.0277 | N68: 78.64 | O68: 0.0016 | P68: 4.64 | Q68: 0 | R68: 0 | S68: 0.1091 | T68: 309.62 | U68: 0.0035 | V68: 9.98 | W68: 1.2041 | X68: 3416.8 | Y68: 6254.39 | Z68: 1139.63
A69: P8139 | B69: Sondador | C69: mês | D69: 2100.36 | E69: 0.8002 | F69: 1680.71 | G69: 0.3508 | H69: 736.74 | I69: 0.0144 | J69: 30.23 | K69: 0 | L69: 0 | M69: 0.0585 | N69: 122.88 | O69: 0.0023 | P69: 4.81 | Q69: 0 | R69: 0 | S69: 0.1474 | T69: 309.62 | U69: 0.0048 | V69: 9.98 | W69: 1.3783 | X69: 2894.97 | Y69: 4995.33 | Z69: 1214.26
A70: P8143 | B70: Técnico ambiental | C70: mês | D70: 2975.65 | E70: 0.8065 | F70: 2399.86 | G70: 0.2476 | H70: 736.74 | I70: 0.0102 | J70: 30.23 | K70: 0 | L70: 0 | M70: 0.0236 | N70: 70.36 | O70: 0.0017 | P70: 5.02 | Q70: 0 | R70: 0 | S70: 0.1041 | T70: 309.62 | U70: 0.0034 | V70: 9.98 | W70: 1.197 | X70: 3561.82 | Y70: 6537.47 | Z70: =Y70-F70-D70 -> 1161.96
A71: P8147 | B71: Técnico de obras | C71: mês | D71: 3242.89 | E71: 0.8021 | F71: 2601.12 | G71: 0.2272 | H71: 736.74 | I71: 0.0093 | J71: 30.23 | K71: 0 | L71: 0 | M71: 0.0168 | N71: 54.33 | O71: 0.0012 | P71: 3.82 | Q71: 0 | R71: 0 | S71: 0.0955 | T71: 309.62 | U71: 0.0031 | V71: 9.98 | W71: 1.1551 | X71: 3745.84 | Y71: 6988.73 | Z71: 1144.72
A72: P8151 | B72: Técnico de segurança do trabalho | C72: mês | D72: 4601.83 | E72: 0.8093 | F72: 3724.26 | G72: 0.1601 | H72: 736.74 | I72: 0.0066 | J72: 30.23 | K72: 0 | L72: 0 | M72: 0 | N72: 0 | O72: 0.001 | P72: 4.67 | Q72: 0 | R72: 0 | S72: 0.0673 | T72: 309.62 | U72: 0.0022 | V72: 9.98 | W72: 1.0464 | X72: 4815.5 | Y72: 9417.33 | Z72: 1091.24
A73: P8155 | B73: Técnico em geoprocessamento | C73: mês | D73: 2920.29 | E73: 0.794 | F73: 2318.71 | G73: 0.2523 | H73: 736.74 | I73: 0.0104 | J73: 30.23 | K73: 0 | L73: 0 | M73: 0.0252 | N73: 73.68 | O73: 0.0011 | P73: 3.29 | Q73: 0 | R73: 0 | S73: 0.106 | T73: 309.62 | U73: 0.0034 | V73: 9.98 | W73: 1.1924 | X73: 3482.26 | Y73: 6402.55 | Z73: 1163.55
A74: P8159 | B74: Técnico em informática - programador | C74: mês | D74: 4417.81 | E74: 0.8012 | F74: 3539.55 | G74: 0.1668 | H74: 736.74 | I74: 0 | J74: 0 | K74: 0 | L74: 0 | M74: 0 | N74: 0 | O74: 0.0011 | P74: 4.83 | Q74: 0 | R74: 0 | S74: 0.0701 | T74: 309.62 | U74: 0.0023 | V74: 9.98 | W74: 1.0414 | X74: 4600.72 | Y74: 9018.53 | Z74: 1061.17
A75: P8163 | B75: Topógrafo | C75: mês | D75: 2516.19 | E75: 0.8059 | F75: 2027.8 | G75: 0.2928 | H75: 736.74 | I75: 0.012 | J75: 30.23 | K75: 0 | L75: 0 | M75: 0.0389 | N75: 97.93 | O75: 0.0018 | P75: 4.42 | Q75: 0 | R75: 0 | S75: 0.1231 | T75: 309.62 | U75: 0.004 | V75: 9.98 | W75: 1.2784 | X75: 3216.72 | Y75: 5732.91 | Z75: 1188.92
A76: P8167 | B76: Arquivista júnior | C76: mês | D76: 2556.43 | E76: 0.7988 | F76: 2042.07 | G76: 0.2882 | H76: 736.74 | I76: 0 | J76: 0 | K76: 0 | L76: 0 | M76: 0.0374 | N76: 95.51 | O76: 0.0013 | P76: 3.37 | Q76: 0 | R76: 0 | S76: 0.1211 | T76: 309.62 | U76: 0.0039 | V76: 9.98 | W76: 1.2507 | X76: 3197.31 | Y76: 5753.73 | Z76: 1155.23
A77: P8168 | B77: Arquivista pleno | C77: mês | D77: 3408.57 | E77: 0.7988 | F77: 2722.76 | G77: 0.2161 | H77: 736.74 | I77: 0 | J77: 0 | K77: 0 | L77: 0 | M77: 0.013 | N77: 44.39 | O77: 0.001 | P77: 3.37 | Q77: 0 | R77: 0 | S77: 0.0908 | T77: 309.62 | U77: 0.0029 | V77: 9.98 | W77: 1.1227 | X77: 3826.87 | Y77: 7235.44 | Z77: 1104.11
A78: P8169 | B78: Arquivista sênior | C78: mês | D78: 5529.35 | E78: 0.7988 | F78: 4416.84 | G78: 0.1332 | H78: 736.74 | I78: 0 | J78: 0 | K78: 0 | L78: 0 | M78: 0 | N78: 0 | O78: 0.0006 | P78: 3.37 | Q78: 0 | R78: 0 | S78: 0.056 | T78: 309.62 | U78: 0.0018 | V78: 9.98 | W78: 0.9905 | X78: 5476.56 | Y78: 11005.9 | Z78: 1059.71
A79: P8173 | B79: Administrador júnior | C79: mês | D79: 3488.04 | E79: 0.7964 | F79: 2777.88 | G79: 0.2112 | H79: 736.74 | I79: 0 | J79: 0 | K79: 0 | L79: 0 | M79: 0.0114 | N79: 39.62 | O79: 0.001 | P79: 3.47 | Q79: 0 | R79: 0 | S79: 0.0888 | T79: 309.62 | U79: 0.0029 | V79: 9.98 | W79: 1.1116 | X79: 3877.31 | Y79: 7365.35 | Z79: 1099.43
A80: P8174 | B80: Administrador pleno | C80: mês | D80: 4650.72 | E80: 0.7964 | F80: 3703.83 | G80: 0.1584 | H80: 736.74 | I80: 0 | J80: 0 | K80: 0 | L80: 0 | M80: 0 | N80: 0 | O80: 0.0007 | P80: 3.47 | Q80: 0 | R80: 0 | S80: 0.0666 | T80: 309.62 | U80: 0.0021 | V80: 9.98 | W80: 1.0243 | X80: 4763.65 | Y80: 9414.37 | Z80: 1059.82
A81: P8175 | B81: Administrador sênior | C81: mês | D81: 8384.93 | E81: 0.7964 | F81: 6677.76 | G81: 0.0879 | H81: 736.74 | I81: 0 | J81: 0 | K81: 0 | L81: 0 | M81: 0 | N81: 0 | O81: 0.0004 | P81: 3.47 | Q81: 0 | R81: 0 | S81: 0.0369 | T81: 309.62 | U81: 0.0012 | V81: 9.98 | W81: 0.9228 | X81: 7737.58 | Y81: 16122.5 | Z81: 1059.81
A82: P8180 | B82: Engenheiro agrimensor júnior | C82: mês | D82: 12903 | E82: 0.7988 | F82: 10306.92 | G82: 0.0571 | H82: 736.74 | I82: 0.0021 | J82: 26.96 | K82: 0 | L82: 0 | M82: 0 | N82: 0 | O82: 0.0004 | P82: 4.61 | Q82: 0 | R82: 0 | S82: 0.024 | T82: 309.62 | U82: 0.0008 | V82: 9.98 | W82: 0.8831 | X82: 11394.83 | Y82: 24297.83 | Z82: 1087.91
A83: P8181 | B83: Engenheiro agrimensor pleno | C83: mês | D83: 13780.36 | E83: 0.7988 | F83: 11007.75 | G83: 0.0535 | H83: 736.74 | I83: 0.002 | J83: 26.96 | K83: 0 | L83: 0 | M83: 0 | N83: 0 | O83: 0.0003 | P83: 4.61 | Q83: 0 | R83: 0 | S83: 0.0225 | T83: 309.62 | U83: 0.0007 | V83: 9.98 | W83: 0.8777 | X83: 12095.66 | Y83: 25876.02 | Z83: 1087.91
A84: P8182 | B84: Engenheiro agrimensor sênior | C84: mês | D84: 14657.71 | E84: 0.7988 | F84: 11708.58 | G84: 0.0503 | H84: 736.74 | I84: 0.0018 | J84: 26.96 | K84: 0 | L84: 0 | M84: 0 | N84: 0 | O84: 0.0003 | P84: 4.61 | Q84: 0 | R84: 0 | S84: 0.0211 | T84: 309.62 | U84: 0.0007 | V84: 9.98 | W84: 0.873 | X84: 12796.49 | Y84: 27454.2 | Z84: 1087.91
A85: P8183 | B85: Geógrafo júnior | C85: mês | D85: 4065.19 | E85: 0.7963 | F85: 3237.11 | G85: 0.1812 | H85: 736.74 | I85: 0.0066 | J85: 26.96 | K85: 0 | L85: 0 | M85: 0.0012 | N85: 4.99 | O85: 0.0009 | P85: 3.64 | Q85: 0 | R85: 0 | S85: 0.0762 | T85: 309.62 | U85: 0.0025 | V85: 9.98 | W85: 1.0649 | X85: 4329.05 | Y85: 8394.24 | Z85: 1091.94
A86: P8184 | B86: Geógrafo pleno | C86: mês | D86: 5420.25 | E86: 0.7963 | F86: 4316.15 | G86: 0.1359 | H86: 736.74 | I86: 0.005 | J86: 26.96 | K86: 0 | L86: 0 | M86: 0 | N86: 0 | O86: 0.0007 | P86: 3.64 | Q86: 0 | R86: 0 | S86: 0.0571 | T86: 309.62 | U86: 0.0018 | V86: 9.98 | W86: 0.9968 | X86: 5403.1 | Y86: 10823.35 | Z86: 1086.95
A87: P8185 | B87: Geógrafo sênior | C87: mês | D87: 10653.03 | E87: 0.7963 | F87: 8483.01 | G87: 0.0692 | H87: 736.74 | I87: 0.0025 | J87: 26.96 | K87: 0 | L87: 0 | M87: 0 | N87: 0 | O87: 0.0003 | P87: 3.64 | Q87: 0 | R87: 0 | S87: 0.0291 | T87: 309.62 | U87: 0.0009 | V87: 9.98 | W87: 0.8983 | X87: 9569.96 | Y87: 20223 | Z87: 1086.96
A88: P8186 | B88: Antropólogo júnior | C88: mês | D88: 3451.7 | E88: 0.8631 | F88: 2979.16 | G88: 0.2134 | H88: 736.74 | I88: 0.0078 | J88: 26.96 | K88: 0 | L88: 0 | M88: 0.0121 | N88: 41.8 | O88: 0.0028 | P88: 9.54 | Q88: 0 | R88: 0 | S88: 0.0897 | T88: 309.62 | U88: 0.0029 | V88: 9.98 | W88: 1.1918 | X88: 4113.81 | Y88: 7565.51 | Z88: 1134.65
A89: P8187 | B89: Antropólogo pleno | C89: mês | D89: 4602.27 | E89: 0.8631 | F89: 3972.22 | G89: 0.1601 | H89: 736.74 | I89: 0.0059 | J89: 26.96 | K89: 0 | L89: 0 | M89: 0 | N89: 0 | O89: 0.0021 | P89: 9.54 | Q89: 0 | R89: 0 | S89: 0.0673 | T89: 309.62 | U89: 0.0022 | V89: 9.98 | W89: 1.1006 | X89: 5065.07 | Y89: 9667.34 | Z89: 1092.85
A90: P8188 | B90: Antropólogo sênior | C90: mês | D90: 7246.03 | E90: 0.8631 | F90: 6254.05 | G90: 0.1017 | H90: 736.74 | I90: 0.0037 | J90: 26.96 | K90: 0 | L90: 0 | M90: 0 | N90: 0 | O90: 0.0013 | P90: 9.54 | Q90: 0 | R90: 0 | S90: 0.0427 | T90: 309.62 | U90: 0.0014 | V90: 9.98 | W90: 1.0139 | X90: 7346.89 | Y90: 14592.92 | Z90: 1092.84
A91: P8189 | B91: Arqueólogo júnior | C91: mês | D91: 2862.79 | E91: 0.8473 | F91: 2425.64 | G91: 0.2574 | H91: 736.74 | I91: 0.0094 | J91: 26.96 | K91: 0 | L91: 0 | M91: 0.0269 | N91: 77.13 | O91: 0.0029 | P91: 8.24 | Q91: 0 | R91: 0 | S91: 0.1082 | T91: 309.62 | U91: 0.0035 | V91: 9.98 | W91: 1.2555 | X91: 3594.32 | Y91: 6457.11 | Z91: 1168.68
A92: P8190 | B92: Arqueólogo pleno | C92: mês | D92: 3817.05 | E92: 0.8473 | F92: 3234.19 | G92: 0.193 | H92: 736.74 | I92: 0.0071 | J92: 26.96 | K92: 0 | L92: 0 | M92: 0.0052 | N92: 19.88 | O92: 0.0022 | P92: 8.24 | Q92: 0 | R92: 0 | S92: 0.0811 | T92: 309.62 | U92: 0.0026 | V92: 9.98 | W92: 1.1385 | X92: 4345.61 | Y92: 8162.66 | Z92: 1111.42
A93: P8191 | B93: Arqueólogo sênior | C93: mês | D93: 5626.43 | E93: 0.8473 | F93: 4767.27 | G93: 0.1309 | H93: 736.74 | I93: 0.0048 | J93: 26.96 | K93: 0 | L93: 0 | M93: 0 | N93: 0 | O93: 0.0015 | P93: 8.24 | Q93: 0 | R93: 0 | S93: 0.055 | T93: 309.62 | U93: 0.0018 | V93: 9.98 | W93: 1.0413 | X93: 5858.82 | Y93: 11485.25 | Z93: 1091.55
A94: P8192 | B94: Historiador júnior | C94: mês | D94: 4135.43 | E94: 0.8137 | F94: 3365 | G94: 0.1782 | H94: 736.74 | I94: 0.0065 | J94: 26.96 | K94: 0 | L94: 0 | M94: 0.0002 | N94: 0.77 | O94: 0.0017 | P94: 7.01 | Q94: 0 | R94: 0 | S94: 0.0749 | T94: 309.62 | U94: 0.0024 | V94: 9.98 | W94: 1.0775 | X94: 4456.09 | Y94: 8591.52 | Z94: 1091.09
A95: P8193 | B95: Historiador pleno | C95: mês | D95: 5513.91 | E95: 0.8137 | F95: 4486.66 | G95: 0.1336 | H95: 736.74 | I95: 0.0049 | J95: 26.96 | K95: 0 | L95: 0 | M95: 0 | N95: 0 | O95: 0.0013 | P95: 7.01 | Q95: 0 | R95: 0 | S95: 0.0562 | T95: 309.62 | U95: 0.0018 | V95: 9.98 | W95: 1.0114 | X95: 5576.98 | Y95: 11090.88 | Z95: 1090.31
A96: P8194 | B96: Historiador sênior | C96: mês | D96: 8675.16 | E96: 0.8137 | F96: 7058.98 | G96: 0.0849 | H96: 736.74 | I96: 0.0031 | J96: 26.96 | K96: 0 | L96: 0 | M96: 0 | N96: 0 | O96: 0.0008 | P96: 7.01 | Q96: 0 | R96: 0 | S96: 0.0357 | T96: 309.62 | U96: 0.0012 | V96: 9.98 | W96: 0.9394 | X96: 8149.3 | Y96: 16824.46 | Z96: 1090.32
A97: P8195 | B97: Paleontólogo júnior | C97: mês | D97: 3451.7 | E97: 0.8631 | F97: 2979.16 | G97: 0.2134 | H97: 736.74 | I97: 0.0078 | J97: 26.96 | K97: 0 | L97: 0 | M97: 0.0121 | N97: 41.8 | O97: 0.0028 | P97: 9.54 | Q97: 0 | R97: 0 | S97: 0.0897 | T97: 309.62 | U97: 0.0029 | V97: 9.98 | W97: 1.1918 | X97: 4113.81 | Y97: 7565.51 | Z97: 1134.65
A98: P8196 | B98: Paleontólogo pleno | C98: mês | D98: 4602.27 | E98: 0.8631 | F98: 3972.22 | G98: 0.1601 | H98: 736.74 | I98: 0.0059 | J98: 26.96 | K98: 0 | L98: 0 | M98: 0 | N98: 0 | O98: 0.0021 | P98: 9.54 | Q98: 0 | R98: 0 | S98: 0.0673 | T98: 309.62 | U98: 0.0022 | V98: 9.98 | W98: 1.1006 | X98: 5065.07 | Y98: 9667.34 | Z98: 1092.85
A99: P8197 | B99: Paleontólogo sênior | C99: mês | D99: 7246.03 | E99: 0.8631 | F99: 6254.05 | G99: 0.1017 | H99: 736.74 | I99: 0.0037 | J99: 26.96 | K99: 0 | L99: 0 | M99: 0 | N99: 0 | O99: 0.0013 | P99: 9.54 | Q99: 0 | R99: 0 | S99: 0.0427 | T99: 309.62 | U99: 0.0014 | V99: 9.98 | W99: 1.0139 | X99: 7346.89 | Y99: 14592.92 | Z99: 1092.84
A100: P8198 | B100: Sociólogo júnior | C100: mês | D100: 4321.08 | E100: 0.8135 | F100: 3515.19 | G100: 0.1705 | H100: 736.74 | I100: 0.0062 | J100: 26.96 | K100: 0 | L100: 0 | M100: 0 | N100: 0 | O100: 0.0016 | P100: 7.01 | Q100: 0 | R100: 0 | S100: 0.0717 | T100: 309.62 | U100: 0.0023 | V100: 9.98 | W100: 1.0658 | X100: 4605.51 | Y100: 8926.58 | Z100: 1090.31
A101: P8199 | B101: Sociólogo pleno | C101: mês | D101: 5761.43 | E101: 0.8135 | F101: 4686.93 | G101: 0.1279 | H101: 736.74 | I101: 0.0047 | J101: 26.96 | K101: 0 | L101: 0 | M101: 0 | N101: 0 | O101: 0.0012 | P101: 7.01 | Q101: 0 | R101: 0 | S101: 0.0537 | T101: 309.62 | U101: 0.0017 | V101: 9.98 | W101: 1.0027 | X101: 5777.24 | Y101: 11538.67 | Z101: 1090.31
A102: P8200 | B102: Sociólogo sênior | C102: mês | D102: 8782.07 | E102: 0.8135 | F102: 7144.21 | G102: 0.0839 | H102: 736.74 | I102: 0.0031 | J102: 26.96 | K102: 0 | L102: 0 | M102: 0 | N102: 0 | O102: 0.0008 | P102: 7.01 | Q102: 0 | R102: 0 | S102: 0.0353 | T102: 309.62 | U102: 0.0011 | V102: 9.98 | W102: 0.9377 | X102: 8234.53 | Y102: 17016.59 | Z102: 1090.31
A103: Profissionais horistas | Z103: 0
A104: P8264 | B104: Motorista de veículo leve - horista | C104: h | D104: 9.69 | E104: 1.132 | F104: 10.97 | G104: 0.4166 | H104: 4.04 | I104: 0.0186 | J104: 0.18 | K104: 0 | L104: 0 | M104: 0.0684 | N104: 0.66 | O104: 0.0022 | P104: 0.02 | Q104: 0 | R104: 0 | S104: 0.1751 | T104: 1.7 | U104: 0.0056 | V104: 0.05 | W104: 1.8185 | X104: 17.62 | Y104: 27.31 | Z104: 6.65
A105: Fonte: FGV IBRE | Z105: 0

Sheet C.G - DNIT
B1: 2025-01-01
B2: Tabela 1 - Custos de veículos
B3: ="Tabela de Preços de Consultoria - mês de referência: "&TEXT(B1,"MMMM")&" de "&TEXT(B1,"AAAA") -> Tabela de Preços de Consultoria - mês de referência: janeiro de 2025
B4: Item | C4: Código | D4: Tipo | E4: Unidade | F4: Custo unitário (R$ / un) | H4: S
F5: Produtivo | G5: Improdutivo
B6: Veículos | C6: E8889 | D6: Veículo leve - 53 kW (sem motorista) | E6: hora | F6: 35.28 | G6: 6.33
C7: E8890 | D7: Veículo leve - 53 kW (com motorista) | E7: hora | F7: 62.59 | G7: 33.64
C8: E8891 | D8: Veículo leve picape 4 x 4 com capacidade de 1,10 t - 147 kW (sem motorista) | E8: hora | F8: 78.47 | G8: 22.75
C9: E8888 | D9: Veículo tipo van furgão com capacidade de 1,38 t - 100 kW (sem motorista) | E9: hora | F9: 55.73 | G9: 17.2
C10: E8887 | D10: Veículo tipo van furgão com capacidade de 1,38 t - 100 kW (com motorista) | E10: hora | F10: 83.04 | G10: 44.51
B11: Fonte: FGV IBRE
B13: Tabela 2 - Custos de imóveis, mobiliário, cestas de instalações e custos diversos
B14: ="Tabela de Preços de Consultoria - mês de referência: "&TEXT(B1,"MMMM")&" de "&TEXT(B1,"AAAA") -> Tabela de Preços de Consultoria - mês de referência: janeiro de 2025
B15: Item | C15: Código | D15: Tipo | F15: Unidade | G15: Custo unitário (R$ / un)
B16: Imóveis | C16: B8951 | D16: Comercial (2,55% do CMCC - SINAPI) | F16: m² x mês | G16: 48.89
C17: B8952 | D17: Residencial (2,45% do CMCC - SINAPI) | F17: m² x mês | G17: 46.97
B18: Mobiliário | C18: B8953 | D18: Escritório | F18: ocupante x mês | G18: 463.66
C19: B8954 | D19: Residência | F19: ocupante x mês | G19: 41.81
B20: Cesta das Instalações | C20: B8955 | D20: Laboratório de asfalto | F20: mês | G20: 5910.44
C21: B8956 | D21: Laboratório de concreto | F21: mês | G21: 4533.32
C22: B8957 | D22: Laboratório de solos | F22: mês | G22: 3458.86
C23: B8958 | D23: Topografia | F23: mês | G23: 4674.4
C24: B8961 | D24: Topografia por VANT | F24: mês | G24: 923.93
B25: Custos Diversos | C25: B8959 | D25: Escritório | F25: ocupante x mês | G25: 136.25
C26: B8960 | D26: Residência | F26: ocupante x mês | G26: 203.54
B27: Fonte: FGV IBRE

Sheet Cotação Voos (hidden)
A1: COTAÇÕES - IDA DIA 07/04/2024 E VOLTA DIA 11/04/2024
A2: Localidade: | B2: Juazeiro/BA
A4: Origem | B4: Destino
A5: BSB | B5: =B2 -> Juazeiro/BA | C5: Cia 1 | D5: Cia 2 | E5: Cia 3 | F5: Média
C6: 1397 | D6: 1695 | E6: 1841 | F6: =AVERAGE(C6:E6) -> 1644.333333
A31: SP | B31: =B2 -> Juazeiro/BA | C31: Cia 1 | D31: Cia 2 | E31: Cia 3 | F31: Média
C32: 885 | D32: 1087 | E32: 1087 | F32: =AVERAGE(C32:E32) -> 1019.666667
A57: Curitiba | B57: =B2 -> Juazeiro/BA | C57: Cia 1 | D57: Cia 2 | E57: Cia 3 | F57: Média
C58: 2301 | D58: 3653 | E58: 4416 | F58: =AVERAGE(C58:E58) -> 3456.666667
A82: Recife | B82: =B2 -> Juazeiro/BA | C82: Cia 1 | D82: Cia 2 | E82: Cia 3 | F82: Média
C83: 2262 | D83: 2262 | E83: 4704 | F83: =AVERAGE(C83:E83) -> 3076
A106: VALOR ADOTADO: | C106: =AVERAGE(F6:F83) -> 2299.166667

Sheet AUX - MOBILIÁRIO
A5: COMPOSIÇÃO DO PREÇO UNITÁRIO MENSAL PARA ALUGUEL DE MOBILIÁRIO E EQUIPAMENTOS DE ESCRITÓRIO
A8: AQUISIÇÃO DE MOBILIÁRIO | B8: VALOR DA DEPRECIAÇÃO | F8: VALOR MENSAL TOTAL (R$)
B9: Tempo de Utilização (Anos) | C9: Meses p/Ano de Uso | D9: Percentual Residual (%) | E9: Depreciação Mensal - R$
A10: =SUM(E13:E18) -> 3354.99 | B10: 1.5 | C10: 12 | D10: 0.2 | E10: =ROUND((A10*(100%-D10))/(B10*C10),2) -> 149.11 | F10: =E10 -> 149.11
A12: Item | B12: Código | C12: Preço Un. | D12: Quantidade | E12: Custo de Aquisição
A13: Mesa de Escritório | B13: 11548/ORSE | C13: 345 | D13: =4 -> 4 | E13: =C13*D13 -> 1380
A14: Cadeira Giratória | B14: 11534/ORSE | C14: 280 | D14: =5 -> 5 | E14: =C14*D14 -> 1400
A15: Armário Escritório | B15: Cotação | C15: =G43 -> 574.99 | D15: 1 | E15: =C15*D15 -> 574.99
A23: Armário para Escritório
A40: Cotação 1 | B40: Cotação 2 | C40: Cotação 3 | D40: Cotação 4 | E40: Cotação 5 | F40: CV= | G40: =_xlfn.STDEV.S(A41:E41)/AVERAGE(A41:A41) -> 0.06280088684
A41: 541.5 | B41: 620.76 | C41: 541.5 | D41: 591.2 | E41: 579.99 | F41: Média= | G41: =AVERAGE(A41:E41) -> 574.99
F42: Mediana= | G42: =MEDIAN(A41:E41) -> 579.99
F43: Menor= | G43: =SMALL(G41:G42,1) -> 574.99
A45: Data da Pesquisa: 20/01/2025
A46: https://www.google.com/search?sca_esv=3c12e2eb7b7f70e3&tbm=shop&q=armario+madeira+alto+escritorio&tbs=mr:1,price:1,ppr_min:500,ppr_max:700&sa=X&ved=0ahUKEwim5PCi5ISLAxW-ppUCHQnQD2QQvSsI5QYoAg&biw=1455&bih=695&dpr=1.1

Sheet AUX - NOTEBOOK
A5: COMPOSIÇÃO DO PREÇO UNITÁRIO MENSAL PARA ALUGUEL DE NOTEBOOK
A8: AQUISIÇÃO DE EQUIPAMENTO | B8: VALOR DA DEPRECIAÇÃO | F8: MANUTENÇÃO | H8: VALOR MENSAL TOTAL (R$)
B9: Tempo de Utilização (Anos) | C9: Meses p/Ano de Uso | D9: Percentual Residual (%) | E9: Depreciação Mensal - R$ | F9: Percentual Anual (%) | G9: Valor Mensal (R$)
A10: =SUM(E13:E18) -> 2599.057143 | B10: 2 | C10: 12 | D10: 0.25 | E10: =ROUND((A10*(100%-D10))/(B10*C10),2) -> 81.22 | F10: 0.05 | G10: =ROUND((F10*A10)/12,2) -> 10.83 | H10: =E10+G10 -> 92.05
A12: Item | B12: Código | C12: Preço Un. | D12: Quantidade | E12: Custo de Aquisição
A13: Notebook 16 GB RAM, 500 GB HDD, Tela 14" e processador 2,8 GHz | B13: Cotação | C13: =J44 -> 2599.057143 | D13: 1 | E13: =C13*D13 -> 2599.057143
A23: Notebook 16 Gb RAM, 500 GB HDD
A41: Cotação 1 | B41: Cotação 2 | C41: Cotação 3 | D41: Cotação 4 | E41: Cotação 5 | F41: Cotação 6 | G41: Cotação 7 | I41: CV= | J41: =_xlfn.STDEV.S(A42:G42)/AVERAGE(A42:G42) -> 0.1660347226
A42: 2990 | B42: 2179 | C42: 2950 | D42: 1999.02 | E42: 2276.39 | F42: 2999.99 | G42: 2799 | I42: Média= | J42: =AVERAGE(A42:G42) -> 2599.057143
I43: Mediana= | J43: =MEDIAN(A42:G42) -> 2799
I44: Menor= | J44: =SMALL(J42:J43,1) -> 2599.057143
A46: Data da Pesquisa: 20/01/2025
A47: https://www.google.com/search?sca_esv=3c12e2eb7b7f70e3&tbm=shop&q=armario+madeira+alto+escritorio&tbs=mr:1,price:1,ppr_min:500,ppr_max:700&sa=X&ved=0ahUKEwim5PCi5ISLAxW-ppUCHQnQD2QQvSsI5QYoAg&biw=1455&bih=695&dpr=1.1

Sheet AUX - IMPRESSORA
A5: COMPOSIÇÃO DO PREÇO UNITÁRIO MENSAL PARA ALUGUEL DE IMPRESSORA
A8: AQUISIÇÃO DE EQUIPAMENTO | B8: VALOR DA DEPRECIAÇÃO | F8: MANUTENÇÃO | H8: VALOR MENSAL TOTAL (R$)
B9: Tempo de Utilização (Anos) | C9: Meses p/Ano de Uso | D9: Percentual Residual (%) | E9: Depreciação Mensal - R$ | F9: Percentual Anual (%) | G9: Valor Mensal (R$)
A10: =SUM(E13:E18) -> 1528.228 | B10: 2 | C10: 12 | D10: 0.25 | E10: =ROUND((A10*(100%-D10))/(B10*C10),2) -> 47.76 | F10: 0.05 | G10: =ROUND((F10*A10)/12,2) -> 6.37 | H10: =E10+G10 -> 54.13
A12: Item | B12: Código | C12: Preço Un. | D12: Quantidade | E12: Custo de Aquisição
A13: Impressora Laser Colorida Multifuncional | B13: Cotação | C13: =G43 -> 1528.228 | D13: 1 | E13: =C13*D13 -> 1528.228
A23: Impressora Laser Multifuncional
F40: CV= | G40: =_xlfn.STDEV.S(A42:E42)/AVERAGE(A42:E42) -> 0.131051297
A41: Cotação 1 | B41: Cotação 2 | C41: Cotação 3 | D41: Cotação 4 | E41: Cotação 5 | F41: Média= | G41: =AVERAGE(A42:E42) -> 1528.228
A42: 1349.1 | B42: 1597 | C42: 1299 | D42: 1779.94 | E42: 1616.1 | F42: Mediana= | G42: =MEDIAN(A42:E42) -> 1597
F43: Menor= | G43: =SMALL(G41:G42,1) -> 1528.228
A46: Data da Pesquisa: 20/01/2025
A47: https://www.google.com/search?sca_esv=3c12e2eb7b7f70e3&tbm=shop&q=armario+madeira+alto+escritorio&tbs=mr:1,price:1,ppr_min:500,ppr_max:700&sa=X&ved=0ahUKEwim5PCi5ISLAxW-ppUCHQnQD2QQvSsI5QYoAg&biw=1455&bih=695&dpr=1.1
